Workbook

Sheet Cover Page
D1: Add company logo
N2: Version 24.2a (for incinerators) - 27/11/24
N4: Note that there is another version of this template available for co-incinerators
B8: Add photo
N13: Notes:
N14: This template may require adjustments by individual operators to meet specific reporting requirements as defined in the site Permit(s)
B29: Annual Performance Report 2024
B31: Permit EPR/WP3239SJ
B33: Tyseley Energy from Waste Plant
B37: Veolia ES Birmingham Limited
B39: Year: | C39: 2024
B41: Address: | C41: James Road, Tyseley, Birmingham, B11 2BA
B43: Tel: | C43: 0203 9567 3740
B45: Email: | C45: christine.skaramaga@veolia.com
B47: Prepared by: | C47: Christine Skaramaga | F47: Position: | G47: Senior Environmental Engineer
B49: Approved by: | C49: Paull Collier | F49: Position: | G49: Plant Manager
B51: Version: | C51: 1
B53: Issue Date: | C53: 2025-01-31

Sheet Contents
A1: =+'Cover Page'!$B$29 -> Annual Performance Report 2024 | E1: =+'Cover Page'!$B$33 -> Tyseley Energy from Waste Plant
A3: Contents | K3: Notes:
A4: Section | B4: Subject | H4: Page | K4: Section references and Page nos. to be inserted
B5: Facility Information | H5: 3 | K5: Sections and Subjects may require adjustment by individual operators to meet specific reporting requirements as defined in the sites Permit(s)
B6: Operational Data | H6: 4
B7: Operational Summary | H7: 6
B8: Performance Form 1 | H8: 7
B9: Energy Form 1 | H9: 8
B10: Permit Compliance | H10: 9
B11: Improvements | H11: 10
B12: Public Liaison | H12: 11
B13: Carbon dioxide and nitrous oxide emissions | H13: 12
B14: Residue Quality | H14: 14
B15: Emissions to Water | H15: 15
B16: Emissions to Air (periodically monitored) | H16: 16
B17: Emissions to Air (continuously monitored) | H17: 20
B18: Hydrogen Chloride emissions | H18: 22
B19: Sulphur Dioxide emissions | H19: 23
B20: Oxides of Nitrogen emissions | H20: 24
B21: Total Organic Carbon emissions | H21: 25
B22: Particulate Matter emissions | H22: 26
B23: Carbon Monoxide emissions | H23: 28
B24: Ammonia emissions | H24: 29
A27: Version Control
A28: Section | B28: Information | H28: Date
A35: Distribution
A36: Copy | B36: Name, Role | H36: No.
A37: 1 | B37: Sarah Dennis, EA Installations Technical Leader | H37: 1
A45: This report is required under the Industrial Emissions Directive’s Article 55(2) requirements on reporting and public information on waste incineration plants and co-incineration plants, which require the operator to produce an annual report on the functioning and monitoring of the plant and make it available to the public.

Sheet Facility Info
A1: =+'Cover Page'!$B$29 -> Annual Performance Report 2024 | E1: =+'Cover Page'!$B$33 -> Tyseley Energy from Waste Plant
A3: Plant Description and Design | K3: Notes:
A5: The main purpose of the activity carried out at this facility is to incinerate, primarily, Municipal Solid Waste (MSW) as defined by EWC 20 03 01, recovering energy in the form of steam and electricity generating 27 MW for export to the National Grid. The permit covers the site and the entire incineration process which includes all incineration lines, waste reception and storage, waste-fuel and air supply systems, boilers, facilities for the treatment of exhaust gases, on-site facilities for handling and storage of residues and operations, recording and monitoring conditions. | K5: Include summary of plant design, design capacity, no. of combustion lines, electrical and heat capacity and any other general information that describes the facility, its location and purpose
A20: Summary of Operational Processes and Procedures
A22: This facility consists of two incineration lines, each capable of processing approximately 23.5 tonnes per hour, which takes approximately 350,000 tonnes of Birmingham’s waste each year but this, is dependent on two factors: actual operating hours and calorific value of the waste being burnt. The third incineration line processes clinical waste and other designated hazardous wastes (CWI) at a nominal rate of 600kg/hour. All emissions to air from the two 80m high chimneys are controlled to meet the emission limits included in the Environmental Permit. The flue gases released into the atmosphere are continuously monitored for Particulate Matter (total), TOC, Hydrogen Chloride, Oxides of Nitrogen, Carbon Monoxide, Ammonia, Sulphur Dioxide, Carbon Dioxide, Nitrous Oxide and flue gas flow. Bi-annual check monitoring of this equipment is carried out by approved contractors using indepent extractive sampling methods, at which time emissions of Heavy Metals, Dioxins and other substances are also monitored. The Continious Emissions Monitoring equipment (CEMs) was in service during 2023 for 100% of the plant operating time. This equipment is stringently monitored with routine calibration checks and is standardised to BS EN14181:2004. | K22: Include summary of key processes and procedures such as (but not limited to); waste reception, control rooms, grate, bed and boiler, energy & heat generation, cooling systems, residue management, emission controls, health and safety systems, maintenance

Sheet Operational Data
A1: =+'Cover Page'!$B$29 -> Annual Performance Report 2024 | E1: =+'Cover Page'!$B$33 -> Tyseley Energy from Waste Plant
A3: Operational Data
A4: Plant Size | B4: 440500 | D4: tonnes pa | F4: MWth | G4: 30 | H4: MWe | J4: Notes:
A5: No. of combustion lines | B5: 2 | D5: No. of Turbines: | F5: 1 | J5: * - RDF to include SRF
J6: ** - Combusted tonnage = tonnes delivered in period + (tonnes in bunker at start of period – tonnes in bunker at end of period), or equivalent calculation depending on plant type
A7: Waste types received | B7: Unit | C7: Q1 | D7: Q2 | E7: Q3 | F7: Q4 | G7: Year Total | H7: %
A8: Household / Local Authority | B8: tonnes | C8: 96300 | D8: 90332 | E8: 94857 | F8: 98026 | G8: =SUM(C8:F8) -> 379515 | H8: =IF(G8>0,G8/$G$18,"-") -> 0.9833497866
A9: Commercial & Industrial | C9: 69 | D9: 96 | E9: 42 | F9: 50 | G9: =SUM(C9:F9) -> 257 | H9: 0.0006659048922 | J9: *** - CHP plants only
A10: Hazardous | C10: 710 | D10: 688 | E10: 672 | F10: 715 | G10: 2785 | H10: 0.00721612889 | J10: **** Availability Definition: 'the availability of a line is to be calculated by the number of hours the line reported Continuously Monitored emission levels to the Regulator through the calendar year divided by the total number of hours in that year. The overall plant availability is calculated as the Mean of all lines in the plant. For clarity this includes periods of abnormal operation.' Rationale: The primary function of an Energy from Waste facility is the disposal of waste. It follows therefore that the availability of a plant is determined by the period of time a facility spends undertaking this activity.
A11: Clinical | C11: 702 | D11: 687 | E11: 757 | F11: 831 | G11: 2977 | H11: 0.007713614257
A12: Waste wood (biomass) | G12: 0 | H12: -
A13: Refuse Derived Fuel * - H'hold/LA | C13: 43 | E13: 154 | F13: 210 | G13: =SUM(C13:F13) -> 407 | H13: 0.001054565335
A14: Refuse Derived Fuel * - C&I | G14: 0 | H14: -
A15: Other [Please specify] | G15: 0 | H15: -
A16: Other [Please specify] | G16: 0 | H16: -
A17: Other [Please specify] | G17: 0 | H17: -
A18: Total waste received | C18: =SUM(C8:C17) -> 97824 | D18: =SUM(D8:D17) -> 91803 | E18: =SUM(E8:E17) -> 96482 | F18: =SUM(F8:F17) -> 99832 | G18: 385941
A19: Rejected Waste | G19: =SUM(C19:F19) -> 0 | H19: =IF(G19>0,G19/$G$18,"-") -> -
A20: Unprocessed waste transferred out | G20: =SUM(C20:F20) -> 0 | H20: =IF(G20>0,G20/$G$18,"-") -> -
A21: Total waste combusted ** | C21: 98603 | D21: 88176 | E21: 94287 | F21: 100881 | G21: =SUM(C21:F21) -> 381947
J22: Password for protected cells A password has been set to prevent accidental editing of cells with formulae. If you still need to make an edit for some reason then the password = 1234
A23: Energy Usage / Export | B23: Unit | C23: Q1 | D23: Q2 | E23: Q3 | F23: Q4 | G23: Year Total | H23: KWh/te
A24: Power Generated | B24: MWh | C24: 52991 | D24: 47121 | E24: 54853 | F24: 56042 | G24: =SUM(C24:F24) -> 211007 | H24: =IF(G24>0,G24*1000/$G$21,"-") -> 552.4509945
A25: Power Exported | C25: 44651 | D25: 41494 | E25: 47972 | F25: 49184 | G25: =SUM(C25:F25) -> 183301 | H25: =IF(G25>0,G25*1000/$G$21,"-") -> 479.9121344
A26: Power Used on site | C26: =(C24-C25)+C27 -> 8340 | D26: =(D24-D25)+D27 -> 5627 | E26: 6881 | F26: 6957 | G26: =SUM(C26:F26) -> 27805 | H26: =IF(G26>0,G26*1000/$G$21,"-") -> 72.79805837
A27: Power Imported | C27: 0 | D27: 0 | E27: 0 | F27: 99 | G27: 99 | H27: =IF(G27>0,G27*1000/$G$21,"-") -> 0.2591982657
A28: Parasitic Load | B28: % | C28: =IF(C24>0,1-C25/(C24+C27),"-") -> 0.1573852164 | D28: =IF(D24>0,1-D25/(D24+D27),"-") -> 0.1194159716 | E28: =IF(E24>0,1-E25/(E24+E27),"-") -> 0.1254443695 | F28: =IF(F24>0,1-F25/(F24+F27),"-") -> 0.1239201297 | G28: =IF(G24>0,1-G25/(G24+G27),"-") -> 0.1317110835
A29: Thermal Energy Produced *** | B29: MWh | G29: =SUM(C29:F29) -> 0 | H29: =IF(G29>0,G29*1000/$G$21,"-") -> -
A30: Thermal Energy Exported *** | G30: 0 | H30: =IF(G30>0,G30*1000/$G$21,"-") -> -
A31: R1 value (if applicable) | B31: R1 | G31: 0.63
A33: Waste Disposal & Recovery | B33: Unit | C33: Q1 | D33: Q2 | E33: Q3 | F33: Q4 | G33: Year Total | H33: % inputs
A34: APC Residues - produced | B34: tonnes | C34: 2491 | D34: 1967 | E34: 2168 | F34: 3088 | G34: =SUM(C34:F34) -> 9714 | H34: =IF(G34>0,G34/$G$21,"-") -> 0.02543284801
A35: IBA - produced | C35: 20369 | D35: 18837 | E35: 20963 | F35: 27051 | G35: 87220 | H35: =IF(G35>0,G35/$G$21,"-") -> 0.2283562903
A36: Metals recycling | C36: 1193 | D36: 806 | E36: 766 | F36: 1100 | G36: =SUM(C36:F36) -> 3865 | H36: 0.01011920502
A37: Interceptor waste | C37: 51 | D37: 61 | E37: 0 | F37: 0 | G37: =SUM(C37:F37) -> 112 | H37: 0.0002932344016
A38: Wooden packaging | C38: 30 | D38: 19 | E38: 23 | F38: 25 | G38: 97 | H38: 0.0002539619371
A39: Other | C39: 0 | D39: 0 | E39: 0 | F39: 0 | G39: 0 | H39: -
A41: Raw Material Usage | B41: Unit | C41: Q1 | D41: Q2 | E41: Q3 | F41: Q4 | G41: Year Total | H41: kg or Ltr /te
A42: Mains Water | B42: m3 | C42: 49517 | D42: 40100 | E42: 44172 | F42: 42764 | G42: =SUM(C42:F42) -> 176553 | H42: =IF(G42>0,G42/$G$21,"-") -> 0.4622447617
A43: Other Water | B43: ltrs | G43: 0 | H43: =IF(G43>0,G43/$G$21,"-") -> -
A44: Ammonia | B44: kgs | C44: 152300 | D44: 129000 | E44: 197900 | F44: 156700 | G44: 635900 | H44: 1.664890679
A45: Urea | B45: kgs | G45: =SUM(C45:F45) -> 0 | H45: -
A46: Activated Carbon | B46: kgs | C46: 64700 | D46: 43300 | E46: 55000 | F46: 57900 | G46: 220900 | H46: 0.5783524939
A47: Lime / hydrated lime | B47: kgs | C47: 667000 | D47: 599000 | E47: 716000 | F47: 606000 | G47: 2588000 | H47: 6.775809209
A48: Fuel oil | B48: ltrs | C48: 368313 | D48: 439674 | E48: 382784 | F48: 391350 | G48: 1582121 | H48: 4.142252721
A49: Gas | B49: cuf | G49: 0
A50: Other | G50: 0
A52: Summary | B52: Line/Unit | C52: Q1 | D52: Q2 | E52: Q3 | F52: Q4 | G52: Year Total | I52: Hrs in year
A53: Availability of waste combustion by line, hrs **** | B53: 1 | C53: 1995 | D53: 1952 | E53: 2080 | F53: 2120 | G53: =SUM(C53:F53) -> 8147 | H53: =+G53/$I$53 -> 0.9300228311 | I53: 8760 | J53: Change this figure to 8784 in a leap year
B54: 2 | C54: 2164 | D54: 1749 | E54: 2094 | F54: 2139 | G54: 8146 | H54: =+G54/$I$53 -> 0.9299086758
B55: 3 | G55: 0 | H55: 0
B56: 4 | G56: 0 | H56: 0
B57: 5 | G57: =SUM(C57:F57) -> 0 | H57: 0
A58: Overall Availability, mean avg. of all lines, hrs | C58: =AVERAGE(C53:C54) -> 2079.5 | D58: =AVERAGE(D53:D54) -> 1850.5 | E58: 2087 | F58: 2129.5 | G58: =AVERAGE(G53:G54) -> 8146.5 | H58: 0.9299657534
A59: Hours of turbine operations, hrs | B59: 1 | C59: 2184 | D59: 1968 | E59: 2208 | F59: 2159 | G59: 8519 | H59: 0.9724885845
A60: Hours of turbine operations, hrs | B60: 2 | G60: 0 | H60: 0
A61: Hours of heat / steam export | G61: 0 | H61: =IF(B61>0,G60/I53,"n/a") -> n/a
A62: Net Calorific Value of waste | B62: MJ/kg
A63: Abnormal Events | B63: qty. | G63: 0 | H63: =IF(G63>0,"yes","no") -> no
A64: Abnormal operation | B64: hours | G64: 0 | H64: =+(G64)/I53 -> 0
A65: Permit Breaches | B65: qty. | G65: 0 | H65: =IF(G65>0,"yes","no") -> no

Sheet Operational Summary
A1: =+'Cover Page'!$B$29 -> Annual Performance Report 2024 | E1: =+'Cover Page'!$B$33 -> Tyseley Energy from Waste Plant
A3: Summary of Plant Operations and Maintenance during the reporting year | K3: Notes:
A5: Annual outage and common unit outage Summary of works carried out at both units 1&2: Boiler & furnace tubes replacement Furnace refractory repairs Grate overhaul, grate bars removed and refitted & new grate bars fitted where necessary ID fan service and FD fan drives Baghouse inspection & overhaul Removal/overhaul and pressure testing of air preheater elements Stack inspection Calibrations of site instrumentation Reactor internal cleaning, thickness checks on the roof structure & cylinder, repairs to internal roof NDT inspections Feeders overhaul and allignment checked Common outage: New CEM UPS installation & commissioning 3,3kV Switchboard buzz coupler breaker installed, all trip settings installed, door locking mechanisms adjusted/repaired 11kV & 415kV new trip setting implemented Refuse crane anti collisions sytem installation, SPG main control panels moved to common services panel DCS service/inspection and replacement of obsolete parts of the hardware Generator LEAP test carried out New gearset with new bearings installed in the gearbox Contact between gear shafts and bearings checked Oil pump coupling replaced with new Allignments checked and validated | K5: Include summary of key operational and/or maintenance activity undertaken in the year, such as any major component upgrades and/or replacements
A29: Summary of Residue Handling for the reporting year
A31: Ash residues (known as Incinerator Bottom Ash or IBA) are currently sent to Castle Bromwich for reprocessing. This material is reprocessed by extracting further ferrous and non-ferrous metals and by crushing, trommelling and screening to produce a graded, quality material that is useable as substitute aggregate in such applications as road building. Ferrous metal removed from the IBA is sent to a steel manufacturer for recycling. Finer particulate matter, know as Air Pollution Control (APC) residues, removed from the flue gases by fabric filter is collected and sent to the Minosus Hazardous Waste underground storage facility in Cheshire or to Empire Works, a Veolia facility, for treatment. | K31: Include in here a summary of residue handling regimes and destinations
A54: =+'Cover Page'!C39 -> 2024 | B54: Plant shut-downs
A55: Date | B55: Reason for shut-down | K55: Provide a very brief reason for plant shut-down e.g. "Shut-down prior to major outage"; "Emergency shut-down due to boiler tube leak" There is no need to include periods of hot-standby here (e.g. to clear feed chute hopper blockages). For clinical waste incinerators which require regular shut-downs for boiler cleaning, there is no need to record these here.
A56: 2024-03-24 | B56: A1 Shut down due to annual outage
A57: 2024-04-01 | B57: A2 Shut down due to annual outage
A58: 2024-05-29 | B58: A1 Shut down due to grate repairs
A59: 2024-06-30 | B59: A2 Shut down due to grate repairs
A60: 2024-07-03 | B60: A2 Shut down due to grate repairs
A61: 2024-07-08 | B61: A1 Shut down due to grate repairs
A62: 2024-09-08 | B62: A2 Shut down due to grate repairs
A63: 2024-09-18 | B63: A1 Shut down due to boiler tube leak
A64: 2024-11-06 | B64: A1 & A2 Shut down due to turbine work
A65: 2024-11-14 | B65: A1 Shut down due to boiler tube leak

Sheet Perf. Form 1
A1: =+'Cover Page'!C39 -> 2024 | B1: Annual Reporting Performance Form 1
A3: =+'Cover Page'!B31 -> Permit EPR/WP3239SJ | F3: Operator: | G3: =+'Cover Page'!B37 -> Veolia ES Birmingham Limited
A4: Facility: | B4: =+'Cover Page'!B33:I33 -> Tyseley Energy from Waste Plant | F4: Form: | G4: Performance 1
A6: Reporting Period from: | D6: 2024-01-01 | F6: to: | G6: 2024-12-31
A8: =+A1 -> 2024 | B8: Annual Reporting of Waste Disposal and Recovery
A9: Waste Description | C9: Disposal Route(s) | E9: Disposal Tonnes | G9: Recovery Tonnes | I9: % / tonne of waste incinerated
A10: 1) Hazardous Wastes
A11: APC Residues | C11: D09/D12 | E11: ='Operational Data'!G34 -> 9714 | I11: =IF((E11+G11)>0,(E11+G11)/'Operational Data'!$G$21, "-") -> 0.02543284801
A12: IBA | I12: =IF((E12+G12)>0,(E12+G12)/'Operational Data'!$G$21, "-") -> -
A13: Interceptor waste | C13: D09/D12 | E13: ='Operational Data'!G37 -> 112 | I13: =IF((E13+G13)>0,(E13+G13)/'Operational Data'!$G$21, "-") -> 0.0002932344016
I14: =IF((E14+G14)>0,(E14+G14)/'Operational Data'!$G$21, "-") -> -
A15: Total Hazardous Waste | E15: =SUM(E11:F14) -> 9826 | G15: =SUM(G11:H14) -> 0 | I15: =IF((E15+G15)>0,(E15+G15)/'Operational Data'!$G$21, "-") -> 0.02572608241
A17: 2) Non-Hazardous Wastes
A18: IBA | C18: R03 | G18: ='Operational Data'!G35 -> 87220 | I18: =IF((E18+G18)>0,(E18+G18)/'Operational Data'!$G$21, "-") -> 0.2283562903
A19: Ferrous Metal | C19: R04 | G19: ='Operational Data'!G36 -> 3865 | I19: =IF((E19+G19)>0,(E19+G19)/'Operational Data'!$G$21, "-") -> 0.01011920502
A20: Process Water | E20: ='Operational Data'!G42-89269 -> 87284 | G20: 89269 | I20: =IF((E20+G20)>0,(E20+G20)/'Operational Data'!$G$21, "-") -> 0.4622447617
A21: Wooden packaging | C21: R03 | G21: ='Operational Data'!G38 -> 97 | I21: =IF((E21+G21)>0,(E21+G21)/'Operational Data'!$G$21, "-") -> 0.0002539619371
I22: =IF((E22+G22)>0,(E22+G22)/'Operational Data'!$G$21, "-") -> -
A23: Total Non-Hazardous Waste | E23: =SUM(E18:F22) -> 87284 | G23: =SUM(G18:H22) -> 180451 | I23: =IF((E23+G23)>0,(E23+G23)/'Operational Data'!$G$21, "-") -> 0.7009742189
A24: TOTAL WASTE | E24: =+E23+E15 -> 97110 | G24: =+G23+G15 -> 180451 | I24: =IF((E24+G24)>0,(E24+G24)/'Operational Data'!$G$21, "-") -> 0.7267003014
A26: Operator’s comments :
A31: =+A1 -> 2024 | B31: Annual Reporting of Water and Other Raw Material Usage
A32: Raw Material | E32: Usage | G32: Unit | H32: Specific Usage | J32: Unit
A33: Mains Water | E33: =+'Operational Data'!G42/1000 -> 176.553 | G33: m3 | H33: =IF(E33>0,E33/'Operational Data'!$G$21,"-") -> 0.0004622447617 | J33: m3/te
A34: Total Water | E34: =+'Operational Data'!G43+'Operational Data'!G42/1000 -> 176.553 | G34: m3 | H34: =IF(E34>0,E34/'Operational Data'!$G$21,"-") -> 0.0004622447617 | J34: m3/te
A35: Urea / Ammonia | E35: =+'Operational Data'!G44 -> 635900 | G35: kg | H35: =IF(E35>0,E35/'Operational Data'!$G$21,"-") -> 1.664890679 | J35: kg/te
A36: Activated Carbon | E36: =+'Operational Data'!G46 -> 220900 | G36: kg | H36: =IF(E36>0,E36/'Operational Data'!$G$21,"-") -> 0.5783524939 | J36: kg/te
A37: Lime / hydrated lime / Sodium Bicarb. | E37: =+'Operational Data'!G47 -> 2588000 | G37: kg | H37: =IF(E37>0,E37/'Operational Data'!$G$21,"-") -> 6.775809209 | J37: kg/te
A39: Operator’s comments :
A43: =+A31 -> 2024 | B43: Annual Reporting of other performance indicators
A44: Parameter | C44: Results by Line
C45: A1 | D45: A2 | E45: A3 | F45: A4 | G45: A5 | I45: Turbine 1 | J45: Turbine 2
A46: Operating hours for the year, hours | C46: ='Operational Data'!G53 -> 8147 | D46: ='Operational Data'!G54 -> 8146 | I46: ='Operational Data'!G59 -> 8519
A47: Number of periods of abnormal operation, qty.
A48: Cumulative hours of abnormal operation for this year, hours
A50: Operator’s comments :
A54: Signed: | B54: Paul Collier | G54: Date: | H54: 2025-01-31

Sheet Energy Form 1
A1: =+'Cover Page'!C39 -> 2024 | B1: Annual Reporting of Energy Usage/Export
A3: =+'Cover Page'!B31 -> Permit EPR/WP3239SJ | F3: Operator: | G3: =+'Cover Page'!B37 -> Veolia ES Birmingham Limited
A5: Facility: | B5: =+'Cover Page'!B33:I33 -> Tyseley Energy from Waste Plant | F5: Form: | G5: Energy 1
A7: Reporting Period from: | D7: =+'Perf. Form 1'!D6:E6 -> 2024-01-01 | F7: to: | G7: =+'Perf. Form 1'!G6:H6 -> 2024-12-31
A9: Energy Source | D9: Energy Usage | F9: Unit | G9: Specific Usage (KWh/tonne incinerated
A10: Electricity Produced | D10: =+'Operational Data'!G24 -> 211007 | F10: MWh | G10: =+'Operational Data'!H24 -> 552.4509945
A11: Electricity Imported | D11: =+'Operational Data'!G27 -> 99 | F11: MWh | G11: =+'Operational Data'!H27 -> 0.2591982657
A12: Electricity Exported | D12: =+'Operational Data'!G25 -> 183301 | F12: MWh | G12: =+'Operational Data'!H25 -> 479.9121344
A13: Gas Oil | D13: ='Operational Data'!G48 -> 1582121 | F13: ltrs | G13: ='Operational Data'!H48 -> 4.142252721
A14: Steam/hot water exported | D14: =+'Operational Data'!G30 -> 0 | F14: GWh | G14: =+'Operational Data'!H30 -> -
A18: Operator’s comments :
A29: Signed: | B29: Paul Collier | G29: Date: | H29: 2025-01-31

Sheet Permit Compliance
A1: =+'Cover Page'!$B$29 -> Annual Performance Report 2024 | E1: =+'Cover Page'!$B$33 -> Tyseley Energy from Waste Plant
A3: Summary of Permit Compliance
A5: Compliance with permit limits for continuously monitored pollutants
A7: The plant met its emission limits as shown in the table below:
A8: Substance | C8: Percentage time compliant during operationNote 1 | L8: Notes:
C9: Half-hourly limit | F9: Daily limit | L9: Note 1: Please report to 2 decimal places, i.e. xx.xx% Note 2: Please enter into this table any permit non-compliances that the EA has given a CCS score for. Please also enter any other non-compliances which you have notified to the EA (e.g. ELV exceedances) but which have not yet been assessed by the EA. There is no need to enter any notifications which were subsequently assessed by the EA not to be permit breaches. Note 3: Please enter information here (rather than just referencing the notifications that were sent to the EA) including where relevant the incineration line reference, pollutant and value of the measured result for any ELV exceedances.
A10: Particulates | C10: 1 | F10: 1
A11: Oxides of nitrogen | C11: 1 | F11: 1
A12: Sulphur dioxide | C12: 1 | F12: 1
A13: Carbon monoxide | C13: xx.xx % or 100.00% 95% of 10-min averages | F13: 1
A14: Total organic carbon | C14: 0.99 | F14: 1
A15: Hydrogen chloride | C15: 1 | F15: 1
A16: Ammonia | C16: xx.xx % | F16: 1
C17: xx.xx % | F17: xx.xx %
A19: Summary of non-compliances under the permit Note 2
A20: Date | B20: Summary of non-compliance Note 3 | D20: Reason | G20: Measures taken to prevent reoccurrence | H20: CCS score if applicable*
H21: Impact | I21: Root cause
A22: 2024-08-29 | B22: TOC half hourly spike on Line 1 at 20,33mg/m3 against the half hourly limit of 20mg/m3 | D22: Process spike | G22: Minimal adjustments performed on combustion primary & secondary air in the boiler furnace | H22: 4 | I22: n/a
A27: *If the Environment Agency (EA) has given a Compliance Classification Scheme (CCS) score due to a permit non-compliance it should be entered here (CCS4 = No impact; CCS3 = Minor impact; CCS2 = Significant impact; CCS1 = Major impact). If the EA has not yet assessed a non-compliance which you have notified to them, these columns should be left blank. Enter N/A if no score was given for the root cause.
A29: Summary of any complaints received and actions to taken to resolve them.
A30: Date | B30: Summary of complaint [including Line/Reference] | E30: Reason (including whether substantiated by the operator or the EA) | H30: Measures taken to prevent reoccurrence

Sheet Improvements
A1: =+'Cover Page'!$B$29 -> Annual Performance Report 2024 | E1: =+'Cover Page'!$B$33 -> Tyseley Energy from Waste Plant
A3: Summary of Plant Improvements
A5: Summary of any efficiency improvements that have been completed within the year.
A6: n/a
A16: Summary of any permit improvement conditions that have been completed within the year and the resulting environmental benefits.
A17: n/a
A27: Summary of any changes to the plant or operating techniques which required a variation to the permit and a summary of the resulting environmental impact.
A28: Permit application has been submitted in order to add EWC 19 12 12 in the permitted list of waste types
A38: Summary of any other improvements made to the plant or planned to be made and a summary of the resulting environmental benefits.
A39: n/a

Sheet Public Liasion
A1: =+'Cover Page'!$B$29 -> Annual Performance Report 2024 | E1: =+'Cover Page'!$B$33 -> Tyseley Energy from Waste Plant
A3: Details of Public & Stakeholder Liaison
A5: Summary of events held during the reporting year.
A6: Date | C6: Description
A7: Bi-monthly | C7: Meetings with Birmingham City Council
A16: List of events planned for next year
A17: Date | C17: Description
A18: Bi-monthly | C18: Meetings with Birmingham City Council
A29: If you wish to be involved in the public liaison programme, please contact _https://www.birmingham.veolia.co.uk/contact#no-back_

Sheet CO2 N2O
A1: =+'Cover Page'!$B$29 -> Annual Performance Report 2024 | C1: =+'Cover Page'!$B$33 -> Tyseley Energy from Waste Plant
A3: Carbon dioxide emissions and biogenic content of waste inputs | F3: Notes:
A5: Carbon dioxide emissions (all types of plant)
B6: Annual mass of carbon dioxide released | C6: tonnes | D6: 420255
B7: Annual mass of carbon dioxide released per tonne of waste burned | C7: t CO2 / t waste | D7: =D6/'Operational Data'!G21 -> 1.100296638
B8: Annual mass of carbon dioxide released per MWh of energy exported | C8: t CO2 / MWh export | D8: =D6/'Operational Data'!G25 -> 2.29270435
B9: Description of how annual carbon dioxide mass emission has been calculated. See Note 1 | F9: Note 1: All permits require operators to continuously monitor CO2 to EN14181 and flow to BS EN 16911-2 (unless otherwise agreed in writing). Operators must therefore use the results from these instruments to calculate their annual CO2 emissions. Where an operator does not have a flow meter calibrated to BS EN 16911-2, the averaged flow measurement from that year's periodic monitoring can be used instead. If the plant does not have calibrated CO2 CEMS, a suitably justified emissions factor can be used.
A10: Nitrous oxide emissions (only plants which use ammonia or urea to abate NOx emissions)
B11: Annual mass emissions of nitrous oxide | C11: tonnes N2O | D11: 2.2
B12: Description of how annual nitrous oxide mass emission has been calculated See Note 2 | C12: CEM data | F12: Note 2: All permits require operators to continuously monitor N2O to EN14181 and flow to BS EN 16911-2, unless otherwise agreed in writing. Operators must therefore use the results from these instruments to calculate their annual N2O emissions. Where an operator does not have a flow meter calibrated to BS EN 16911-2, the averaged flow measurement from periodic monitoring can be used instead. If the plant does not have calibrated N2O CEMS, data from periodic monitoring or a suitably justified emissions factor can be used instead.
A13: Total annual carbon dioxide + nitrous oxide emissions. See Note 3. | C13: tonnes CO2e | D13: =(D11*265)+D6 -> 420838 | F13: Note 3: Total annual carbon dioxide and nitrous oxide emissions reported as carbon dioxide equivalent where 1 tonne nitrous oxide is equivalent to 265 tonnes carbon dioxide.
A14: Biogenic CO2 emissions (See Note 4) | F14: Note 4: Only plants combusting residual municipal waste, refuse derived fuel or solid recovered fuel need complete this section.
B15: Percentage of total carbon dioxide emissions arising from biogenic waste | C15: %
B16: No. of measurements undertaken | C16: Number
B17: Description of how percentage biogenic carbon dioxide emissions have been measured or calculated. See Note 5 | F17: Note 5: The results from C14 sampling should be used if this is carried out at the plant (either via an installed sampler or from spot samples). Otherwise, as an approximation (and in lieu of any more accurate metrics which may be developed in future), the measured or estimated biogenic fraction by net calorific value (see Note 6) can be assumed to be the same as the biogenic CO2 fraction of the total CO2 emissions from the plant.
A18: Biogenic fraction of waste feedstock (See Note 4)
B19: Yearly average biogenic percentage of the waste by net calorific value (NCV) | C19: %
B20: Description of how biogenic percentage (by NCV) has been calculated or estimated. See Note 6 | F20: Note 6: If C14 sampling is carried out at the plant, the methodology set out in the embedded document entitled "Renewable Energy Association Energy Content of Fuels - Description of Method" embedded below can be used to calculate the biogenic percentage by net calorific value. Otherwise, data from waste sampling or BIOMA software can be used; or if none of these are available, an estimated figure with justification or a figure assumed on the basis of up-to-date industry data can be used.
B21: Yearly average biogenic percentage of the waste by mass | C21: 0.518 | D21: ='Operational Data'!G21*0.518 -> 197848.546
B22: If waste sampling undertaken, no. of samples used to ascertain average biogenic percentages above | C22: Number
B23: Description of how biogenic percentage (by mass) has been calculated or estimated. See Note 7 | C23: 2017 WRAP data | F23: Note 7: Where available, data from waste sampling should be used; otherwise, an estimated figure with justification can be used, or a figure assumed on the basis of up-to-date industry data.
B25: Comments:

Sheet Residue Quality
A1: =+'Cover Page'!$B$29 -> Annual Performance Report 2024 | E1: =+'Cover Page'!$B$33 -> Tyseley Energy from Waste Plant
A3: Residue Quality Monitoring Requirements
A5: Summary of monitoring undertaken and compliance
A13: Commentary on any specific events
A14: Date & Event | C14: Description
A27: Residue Quality Monitoring Results
A28: Parameter (unit) | C28: Limit* | D28: Normal Operation
D29: Bottom ash | F29: APC Residues
A30: Loss on Ignition (average %) | C30: <5%
A31: Total Organic Carbon (average %) | C31: <3% | D31: 1.7
A32: No. of Assessments Undertaken | C32: ---
A33: No. of Hazardous Results | C33: ---
A34: * The permit will specify a limit of either 5% loss on ignition or 3% total organic carbon. If both are measured anyway, please enter the results here, even where the limit does not apply.
A36: Comments :

Sheet Water
A1: =+'Cover Page'!$B$29 -> Annual Performance Report 2024 | E1: =+'Cover Page'!$B$33 -> Tyseley Energy from Waste Plant
A3: Emissions to Water
A5: Summary of monitoring undertaken and compliance
A6: As per Severn Trent Conditions of Consent to the discharge trade effluent to the public foul water sewer
A13: Commentary on any specific events
A14: Date & Event | C14: Description
A22: Emissions to Water / Sewer
A23: Parameter | D23: Monitoring Frequency | F23: Limit | G23: Target | H23: Max. | I23: Average
A24: Outlet 1
A25: SULPHATE | D25: Periodic | F25: 1500 | H25: 819 | I25: 632
A26: CHRIOMIUM (Cr) | D26: Periodic | F26: 5 | H26: 0.0707 | I26: 0.06885
A27: COPPER (Cu) | D27: Periodic | F27: 5 | H27: 1.02 | I27: 0.6065
A28: LEAD (Pb) | D28: Periodic | F28: 5 | H28: 0.639 | I28: 0.3835
A29: NICKEL (Ni) | D29: Periodic | F29: 5 | H29: 0.07 | I29: 0.047
A30: ZINC (Zn) | D30: Periodic | F30: 10 | H30: 0.72 | I30: 0.5805
A31: SULPHIDE as S | D31: Periodic | F31: 1 | H31: 0.171 | I31: 0.15
A32: pH | D32: Periodic | F32: 12.5 | H32: 12 | I32: 11.95
A33: Outlet 2
A34: SULPHATE | D34: Periodic | F34: 1500
A35: CHRIOMIUM (Cr) | D35: Periodic | F35: 5
A36: COPPER (Cu) | D36: Periodic | F36: 5
A37: LEAD (Pb) | D37: Periodic | F37: 5
A38: NICKEL (Ni) | D38: Periodic | F38: 5
A39: ZINC (Zn) | D39: Periodic | F39: 10
A40: SULPHIDE as S | D40: Periodic | F40: 1
A41: pH | D41: Periodic | F41: 12.5

Sheet Air (periodic)
A1: =+'Cover Page'!$B$29 -> Annual Performance Report 2024 | E1: =+'Cover Page'!$B$33 -> Tyseley Energy from Waste Plant
A3: Emissions to Air (periodically monitored)
A5: Summary of monitoring undertaken, standards used and compliance | L5: Notes:
A6: As per permit requirements | L6: Template may require adjustment for any bespoke monitoring requirements of permit - please also check that all default ELV values, reference periods and the stated oxygen reference value match those for your plant, and edit if necessary!
A9: Results of emissions to air that are periodically monitored - oxygen reference 11%
A10: Substance | C10: Ref. Period | D10: Emission Limit Value | J10: Average | L10: User to add additional tables as necessary, depending on whether quarterly or bi-annual reporting is required for the compliance year
F11: A1(Q1&Q2) | G11: A2(Q1&Q2) | H11: A1(Q3&Q4) | I11: A2(Q3&Q4) | J11: A1 | K11: A2
A12: Hydrogen fluoride | C12: 30min x 3 | D12: 1 mg/m3 | F12: 0.05 | G12: 0.04 | H12: 0.04 | I12: 0.05 | J12: =AVERAGE(F12,H12) -> 0.045 | K12: =AVERAGE(G12,I12) -> 0.045
A13: Cd and Tl and their compounds | C13: 30min x 3 | D13: 0.02 mg/m3 | F13: 0.02 | G13: 0.0017 | H13: 0.0019 | I13: 0.0017 | J13: =AVERAGE(F13,H13) -> 0.01095 | K13: =AVERAGE(G13,I13) -> 0.0017
A14: Hg and its compounds | C14: 30min x 3 | D14: 0.02 mg/m3 | F14: 0.0005 | G14: 0.0004 | H14: 0.0005 | I14: 0.0005 | J14: 0.0005 | K14: 0.00045
A15: Sb, As, Pb, Cr, Co, Cu, Mn, Ni, V and their compounds | C15: 30min x 3 | D15: 0.3 mg/m3 | F15: 0.0573 | G15: 0.029 | H15: 0.023 | I15: 0.1127 | J15: 0.04015 | K15: 0.07085
A16: Dioxins & Furans (I-TEQ) | C16: 6-8hrs | D16: 0.06 ng/m3 | F16: 0.023 | G16: 0.024 | H16: 0.022 | I16: 0.016 | J16: 0.0225 | K16: 0.02
A17: PCBs (WHO-TEQ Humans / Mammals) | C17: 6-8hrs | D17: None set ng/m3 | F17: 0.0026 | G17: 0.003 | H17: 0.0016 | I17: 0.0007 | J17: 0.0021 | K17: 0.00185
A18: PCBs (WHO-TEQ Fish) | C18: 6-8hrs | D18: None set ng/m3 | F18: 0.00015 | G18: 0.00017 | H18: 7.2e-05 | I18: 3.2e-05 | J18: 0.000111 | K18: 0.000101
A19: PCBs (WHO-TEQ Birds) | C19: 6-8hrs | D19: None set ng/m3 | F19: 0.012 | G19: 0.011 | H19: 0.0027 | I19: 0.0018 | J19: 0.00735 | K19: 0.0064
A20: Dioxins & Furans (WHO-TEQ Humans / Mammals) | C20: 6-8hrs | D20: None set ng/m3 | F20: 0.026 | G20: 0.027 | H20: 0.024 | I20: 0.017 | J20: 0.025 | K20: 0.022
A21: Dioxins & Furans (WHO-TEQ Fish) | C21: 6-8hrs | D21: None set ng/m3 | F21: 0.024 | G21: 0.024 | H21: 0.024 | I21: 0.012 | J21: 0.024 | K21: 0.018
A22: Dioxins & Furans (WHO-TEQ Birds) | C22: 6-8hrs | D22: None set ng/m3 | F22: 0.035 | G22: 0.035 | H22: 0.031 | I22: 0.02 | J22: 0.033 | K22: 0.0275
A23: Brominated Dioxins & Furans (I-TEQ) | C23: 6-8hrs | D23: None set ng/m3 | F23: 0.00564 | G23: 0.00552 | H23: 0.00268 | I23: 0.00202 | J23: 0.00416 | K23: 0.00377
A24: Total PAH | C24: 6-8hrs | D24: None set µg/m3 | F24: 0.53 | G24: 0.2 | J24: 0.53 | K24: 0.2
A25: Anthanthrene | C25: 6-8hrs | D25: None set µg/m3 | F25: 0.002 | G25: 0.002 | J25: 0.002 | K25: 0.002
A26: Benzo(a)anthracene | C26: 6-8hrs | D26: None set µg/m3 | F26: 0.0022 | G26: 0.002 | J26: 0.0022 | K26: 0.002
A27: Benzo(a)pyrene | C27: 6-8hrs | D27: None set µg/m3 | F27: 0.002 | G27: 0.002 | J27: 0.002 | K27: 0.002
A28: Benzo(b)fluoranthene | C28: 6-8hrs | D28: None set µg/m3 | F28: 0.0036 | G28: 0.002 | J28: 0.0036 | K28: 0.002
A29: Benzo(b)naptho(2,1-d) thiophene | C29: 6-8hrs | D29: None set µg/m3 | F29: 0.002 | G29: 0.002 | J29: 0.002 | K29: 0.002
A30: Benzo(c)phenanthrene | C30: 6-8hrs | D30: None set µg/m3 | F30: 0.002 | G30: 0.002 | J30: 0.002 | K30: 0.002
A31: Benzo(ghi)perylene | C31: 6-8hrs | D31: None set µg/m3 | F31: 0.011 | G31: 0.0059 | J31: 0.011 | K31: 0.0059
A32: Benzo(k)fluoranthene | C32: 6-8hrs | D32: None set µg/m3 | F32: 0.002 | G32: 0.02 | J32: 0.002 | K32: 0.02
A33: Cholanthrene | C33: 6-8hrs | D33: None set µg/m3 | F33: 0.002 | G33: 0.02 | J33: 0.002 | K33: 0.02
A34: Chrysene | C34: 6-8hrs | D34: None set µg/m3 | F34: 0.0076 | G34: 0.0025 | J34: 0.0076 | K34: 0.0025
A35: Cyclopenta(cd)pyrene | C35: 6-8hrs | D35: None set µg/m3 | F35: 0.002 | G35: 0.002 | J35: 0.002 | K35: 0.002
A36: Dibenzo(ai)pyrene | C36: 6-8hrs | D36: None set µg/m3 | F36: 0.002 | G36: 0.002 | J36: 0.002 | K36: 0.002
A37: Dibenzo(ah)anthracene | C37: 6-8hrs | D37: None set µg/m3 | F37: 0.002 | G37: 0.002 | J37: 0.002 | K37: 0.002
A38: Fluoranthene | C38: 6-8hrs | D38: None set µg/m3 | F38: 0.059 | G38: 0.045 | J38: 0.059 | K38: 0.045
A39: Indeno(123-cd) pyrene | C39: 6-8hrs | D39: None set µg/m3 | F39: 0.0028 | G39: 0.002 | J39: 0.0028 | K39: 0.002
A40: Naphthalene | C40: 6-8hrs | D40: None set µg/m3 | F40: 0.42 | G40: 0.092 | J40: 0.42 | K40: 0.092
A41: Comments :
A42: The PAH periodic emissions monitoring is an annual requirement and was completed during Q1/Q2 periodic emissions monitoring campaign. Brominated dioxins & furans periodic emissions results are added to the table above

Sheet Air (CEMS)
A1: =+'Cover Page'!$B$29 -> Annual Performance Report 2024 | I1: =+'Cover Page'!$B$33 -> Tyseley Energy from Waste Plant
A3: Emissions to Air (continuously monitored)
N4: Notes:
A5: Summary of monitoring undertaken, standards used and compliance | N5: Template may require adjustment for any bespoke monitoring requirements of permit
A6: BS EN 14181 & MCertS CEM system | N6: Please check that all default ELV values match those for your plant and edit if necessary!
N7: Report to 1 decimal place
A11: Results of emissions to air that are continuously monitored (maximum and average values for each line) - oxygen reference 11%
A12: Substance | B12: Reference Period | C12: Emission Limit Value | D12: A1 | F12: A2 | H12: A3 | J12: A4 | L12: A5
D13: Max. | E13: Avg. | F13: Max. | G13: Avg. | H13: Max. | I13: Avg. | J13: Max. | K13: Avg. | L13: Max. | M13: Avg.
A14: Oxides of nitrogen | B14: Daily mean | C14: 180 mg/m3 | D14: =NOx!O19 -> 173.9 | E14: =NOx!N19 -> 164.925 | F14: =NOx!O34 -> 174.7 | G14: =NOx!N34 -> 164.5833333
B15: ½ hourly mean | C15: 400 mg/m3 | D15: =NOx!M19 -> 286.4 | E15: =NOx!L19 -> 165.0333333 | F15: =NOx!M34 -> 278.5 | G15: =NOx!L34 -> 164.55
A16: Particulates | B16: Daily mean | C16: 5 mg/m3 | D16: =Particulates!O19 -> 1.3 | E16: =Particulates!N19 -> 0.4 | F16: =Particulates!O34 -> 2.2 | G16: =Particulates!N34 -> 0.8083333333
B17: ½ hourly mean | C17: 30 mg/m3 | D17: =Particulates!M19 -> 21.8 | E17: =Particulates!L19 -> 0.45 | F17: =Particulates!M34 -> 5.1 | G17: =Particulates!L34 -> 0.8416666667
A18: Total Organic Carbon | B18: Daily mean | C18: 10 mg/m3 | D18: =TOC!O19 -> 3.2 | E18: =TOC!N19 -> 0.475 | F18: =TOC!O34 -> 2.7 | G18: =TOC!N34 -> 1.691666667
B19: ½ hourly mean | C19: 20 mg/m3 | D19: =TOC!M19 -> 20.3 | E19: =TOC!L19 -> 0.5083333333 | F19: =TOC!M34 -> 17.7 | G19: =TOC!L34 -> 1.733333333
A20: Hydrogen chloride | B20: Daily mean | C20: 8 mg/m3 | D20: =HCl!O19 -> 7 | E20: =HCl!N19 -> 4.25 | F20: =HCl!O34 -> 7 | G20: =HCl!N34 -> 4.891666667
B21: ½ hourly mean | C21: 60 mg/m3 | D21: =HCl!M19 -> 39.1 | E21: =HCl!L19 -> 4.258333333 | F21: =HCl!M34 -> 51 | G21: =HCl!L34 -> 4.916666667
A22: Sulphur dioxide | B22: Daily mean | C22: 40 mg/m3 | D22: ='SO2'!O19 -> 25.1 | E22: ='SO2'!N19 -> 8.258333333 | F22: ='SO2'!O34 -> 22.9 | G22: ='SO2'!N34 -> 4.95
B23: ½ hourly mean | C23: 200 mg/m3 | D23: ='SO2'!M19 -> 197.5 | E23: ='SO2'!L19 -> 8.333333333 | F23: ='SO2'!M34 -> 165.2 | G23: ='SO2'!L34 -> 4.958333333
A24: Carbon monoxide | B24: Daily mean | C24: 50 mg/m3 | D24: ='CO 95% 10 min'!Q22 -> 25.7 | E24: ='CO 95% 10 min'!P22 -> 12.31666667 | F24: ='CO 95% 10 min'!Q37 -> 29.4 | G24: ='CO 95% 10 min'!P37 -> 11.175
B25: ½ hourly mean * | C25: 100 mg/m3 *
B26: 95%ile 10-min avg * | C26: 150 mg/m3 * | D26: ='CO 95% 10 min'!M22 -> 91.40833333 | E26: ='CO 95% 10 min'!N22 -> 12.33333333 | F26: ='CO 95% 10 min'!M37 -> 61.80833333 | G26: ='CO 95% 10 min'!N37 -> 11.21666667
A27: Ammonia | B27: Daily mean | C27: 15 mg/m3 | D27: ='NH3'!O19 -> 12.3 | E27: ='NH3'!N19 -> 1.45 | F27: ='NH3'!O34 -> 10.4 | G27: ='NH3'!N34 -> 1.575
A28: * = delete as appropriate, depending on whether your plant has half-hourly or 10-min CO ELVs
A29: Comments :
A30: A half hour TOC exceedance occurred on A1 in August

Sheet HCl
A1: =+'Cover Page'!$B$29 -> Annual Performance Report 2024 | E1: =+'Cover Page'!$B$33 -> Tyseley Energy from Waste Plant
A3: Monitoring of Hydrogen Chloride emissions | D3: Whole Installation | G3: See Notes in Cell Q3 | J3: =+A3 -> Monitoring of Hydrogen Chloride emissions | N3: Per Combustion Line | Q3: Notes:
Q4: User to add logic to complete Whole installation, Table A5:G18. From the data in Per Combustion Line, Table J6:O79, subject to No. of lines installed
A5: =+'Cover Page'!C39 -> 2024 | B5: 1/2 Hourly Reference Periods | E5: Daily Reference Periods
A6: mg/Nm3 | B6: 1/2 hourly HCl ELV | C6: Monthly mean of half-hourly averages | D6: Highest half- hourly average | E6: Daily HCl ELV | F6: Monthly mean of daily averages | G6: Highest daily average | J6: =+A5 -> 2024 | K6: mg/Nm3 | L6: Monthly mean of half-hourly averages | M6: Highest half- hourly average | N6: Monthly mean of daily averages | O6: Highest daily average
A7: Jan | B7: 60 | C7: =AVERAGE(L7,L22) -> 4.85 | D7: =MAX(M7,M22) -> 43.3 | E7: 8 | F7: =AVERAGE(N7,N22) -> 4.85 | G7: =MAX(O7,O22) -> 6.4 | J7: A1 | K7: Jan | L7: 4.5 | M7: 35.5 | N7: 4.5 | O7: 5.7
A8: Feb | B8: 60 | C8: =AVERAGE(L8,L23) -> 5.3 | D8: =MAX(M8,M23) -> 46.4 | E8: 8 | F8: =AVERAGE(N8,N23) -> 5.3 | G8: =MAX(O8,O23) -> 6.9 | K8: Feb | L8: 5.2 | M8: 38.7 | N8: 5.2 | O8: 6.9
A9: Mar | B9: 60 | C9: 5.45 | D9: 51 | E9: 8 | F9: 5.45 | G9: 7 | K9: Mar | L9: 5.4 | M9: 35 | N9: 5.4 | O9: 7 | Q9: Whole Installation table A5:G18:
A10: Apr | B10: 60 | C10: 2.55 | D10: 39 | E10: 8 | F10: 2.4 | G10: 4.5 | K10: Apr | L10: 1.9 | M10: 15.2 | N10: 1.9 | O10: 3.1 | Q10: Mean: for 1/2 hourly and daily periods calculate mean of values across all operational combustion lines for the month
A11: May | B11: 60 | C11: 4.9 | D11: 38.4 | E11: 8 | F11: 4.85 | G11: 6.5 | K11: May | L11: 4.7 | M11: 38.4 | N11: 4.7 | O11: 5.9
A12: Jun | B12: 60 | C12: 4.1 | D12: 34.8 | E12: 8 | F12: 4.1 | G12: 6.4 | K12: Jun | L12: 3.5 | M12: 25.7 | N12: 3.5 | O12: 5
A13: Jul | B13: 60 | C13: 4.8 | D13: 28.6 | E13: 8 | F13: 4.85 | G13: 6.1 | K13: Jul | L13: 4.7 | M13: 28.6 | N13: 4.7 | O13: 6 | Q13: Maximum: for 1/2 hourly and daily periods use the highest value across all operational combustion lines for the month
A14: Aug | B14: 60 | C14: 5.05 | D14: 51 | E14: 8 | F14: 5 | G14: 6.9 | K14: Aug | L14: 4.5 | M14: 22 | N14: 4.4 | O14: 6.1
A15: Sep | B15: 60 | C15: 4.5 | D15: 29.9 | E15: 8 | F15: 4.45 | G15: 6.6 | K15: Sep | L15: 4 | M15: 16.3 | N15: 3.9 | O15: 5.7
A16: Oct | B16: 60 | C16: 4.15 | D16: 34.1 | E16: 8 | F16: 4.15 | G16: 6.5 | K16: Oct | L16: 4 | M16: 19.2 | N16: 4 | O16: 6.4
A17: Nov | B17: 60 | C17: 4.35 | D17: 40.8 | E17: 8 | F17: 4.4 | G17: 6.8 | K17: Nov | L17: 4 | M17: 39.1 | N17: 4.1 | O17: 6.4
A18: Dec | B18: 60 | C18: 5.05 | D18: 47.9 | E18: 8 | F18: 5.05 | G18: 6.6 | K18: Dec | L18: 4.7 | M18: 30.8 | N18: 4.7 | O18: 5.6
K19: Annual | L19: =AVERAGE(L7:L18) -> 4.258333333 | M19: =MAX(M7:M18) -> 39.1 | N19: =AVERAGE(N7:N18) -> 4.25 | O19: =MAX(O7:O18) -> 7
J21: =+A5 -> 2024 | K21: mg/Nm3 | L21: Monthly mean of half-hourly averages | M21: Highest half- hourly average | N21: Monthly mean of daily averages | O21: Highest daily average
J22: A2 | K22: Jan | L22: 5.2 | M22: 43.3 | N22: 5.2 | O22: 6.4
K23: Feb | L23: 5.4 | M23: 46.4 | N23: 5.4 | O23: 6.2
K24: Mar | L24: 5.5 | M24: 51 | N24: 5.5 | O24: 7
K25: Apr | L25: 3.2 | M25: 39 | N25: 2.9 | O25: 4.5
K26: May | L26: 5.1 | M26: 36.4 | N26: 5 | O26: 6.5
K27: Jun | L27: 4.7 | M27: 34.8 | N27: 4.7 | O27: 6.4
K28: Jul | L28: 4.9 | M28: 25.7 | N28: 5 | O28: 6.1
K29: Aug | L29: 5.6 | M29: 51 | N29: 5.6 | O29: 6.9
K30: Sep | L30: 5 | M30: 29.9 | N30: 5 | O30: 6.6
K31: Oct | L31: 4.3 | M31: 34.1 | N31: 4.3 | O31: 6.5
K32: Nov | L32: 4.7 | M32: 40.8 | N32: 4.7 | O32: 6.8
K33: Dec | L33: 5.4 | M33: 47.9 | N33: 5.4 | O33: 6.6
K34: Annual | L34: =AVERAGE(L22:L33) -> 4.916666667 | M34: =MAX(M22:M33) -> 51 | N34: =AVERAGE(N22:N33) -> 4.891666667 | O34: =MAX(O22:O33) -> 7
J36: =+A5 -> 2024 | K36: mg/Nm3 | L36: Monthly mean of half-hourly averages | M36: Highest half- hourly average | N36: Monthly mean of daily averages | O36: Highest daily average
J37: A3 | K37: Jan
K38: Feb
K39: Mar
K40: Apr
K41: May
K42: Jun
K43: Jul
K44: Aug
K45: Sep
K46: Oct
K47: Nov
A48: Comments : | K48: Dec
K49: Annual | L49: =AVERAGE(L37:L48) ->  | M49: =MAX(M37:M48) -> 0 | N49: =AVERAGE(N37:N48) ->  | O49: =MAX(O37:O48) -> 0
J51: =+A5 -> 2024 | K51: mg/Nm3 | L51: Monthly mean of half-hourly averages | M51: Highest half- hourly average | N51: Monthly mean of daily averages | O51: Highest daily average
J52: A4 | K52: Jan
K53: Feb
K54: Mar
K55: Apr
K56: May
K57: Jun
K58: Jul
K59: Aug
K60: Sep
K61: Oct
K62: Nov
K63: Dec
K64: Annual | L64: =AVERAGE(L52:L63) ->  | M64: =MAX(M52:M63) -> 0 | N64: =AVERAGE(N52:N63) ->  | O64: =MAX(O52:O63) -> 0
J66: =+A5 -> 2024 | K66: mg/Nm3 | L66: Monthly mean of half-hourly averages | M66: Highest half- hourly average | N66: Monthly mean of daily averages | O66: Highest daily average
J67: A5 | K67: Jan
K68: Feb
K69: Mar
K70: Apr
K71: May
K72: Jun
K73: Jul
K74: Aug
K75: Sep
K76: Oct
K77: Nov
K78: Dec
K79: Annual | L79: =AVERAGE(L67:L78) ->  | M79: =MAX(M67:M78) -> 0 | N79: =AVERAGE(N67:N78) ->  | O79: =MAX(O67:O78) -> 0

Sheet SO2
A1: =+'Cover Page'!$B$29 -> Annual Performance Report 2024 | E1: =+'Cover Page'!$B$33 -> Tyseley Energy from Waste Plant
A3: Monitoring of Sulphur dioxide emissions | D3: Whole Installation | G3: See Notes in Cell Q3 | J3: =+A3 -> Monitoring of Sulphur dioxide emissions | N3: Per Combustion Line | Q3: Notes:
Q4: User to add logic to complete Whole installation, Table A5:G18. From the data in Per Combustion Line, Table J6:O79, subject to No. of lines installed
A5: =+'Cover Page'!C39 -> 2024 | B5: 1/2 Hourly Reference Periods | E5: Daily Reference Periods
A6: mg/Nm3 | B6: 1/2 hourly SO2 ELV | C6: Monthly mean of half-hourly averages | D6: Highest half- hourly average | E6: Daily SO2 ELV | F6: Monthly mean of daily averages | G6: Highest daily average | J6: =+A5 -> 2024 | K6: mg/Nm3 | L6: Monthly mean of half-hourly averages | M6: Highest half- hourly average | N6: Monthly mean of daily averages | O6: Highest daily average
A7: Jan | B7: 200 | C7: =AVERAGE(L7,L22) -> 5.15 | D7: =MAX(M7,M22) -> 125.4 | E7: 40 | F7: =AVERAGE(N7,N22) -> 5.15 | G7: =MAX(O7,O22) -> 17.3 | J7: A1 | K7: Jan | L7: 7.2 | M7: 76.9 | N7: 7.2 | O7: 17.3
A8: Feb | B8: 200 | C8: =AVERAGE(L8,L23) -> 6.3 | D8: =MAX(M8,M23) -> 126.9 | E8: 40 | F8: =AVERAGE(N8,N23) -> 6.3 | G8: =MAX(O8,O23) -> 15.7 | K8: Feb | L8: 9.4 | M8: 126.9 | N8: 9.4 | O8: 15.7
A9: Mar | B9: 200 | C9: 7 | D9: 152.6 | E9: 40 | F9: 6.95 | G9: 12.8 | K9: Mar | L9: 9.5 | M9: 152.6 | N9: 9.4 | O9: 12.8 | Q9: Whole Installation table A5:G18:
A10: Apr | B10: 200 | C10: 13.7 | D10: 165.1 | E10: 40 | F10: 13.3 | G10: 25.1 | K10: Apr | L10: 15.3 | M10: 165.1 | N10: 14.6 | O10: 25.1 | Q10: Mean: for 1/2 hourly and daily periods calculate mean of values across all operational combustion lines for the month
A11: May | B11: 200 | C11: 7.35 | D11: 107.9 | E11: 40 | F11: 7.4 | G11: 15.5 | K11: May | L11: 9 | M11: 91.3 | N11: 9 | O11: 13.1
A12: Jun | B12: 200 | C12: 4.8 | D12: 165.2 | E12: 40 | F12: 4.75 | G12: 11.5 | K12: Jun | L12: 6.6 | M12: 77.8 | N12: 6.5 | O12: 11.5
A13: Jul | B13: 200 | C13: 5.9 | D13: 128.6 | E13: 40 | F13: 5.9 | G13: 17.3 | K13: Jul | L13: 8.4 | M13: 128.6 | N13: 8.4 | O13: 17.3 | Q13: Maximum: for 1/2 hourly and daily periods use the highest value across all operational combustion lines for the month
A14: Aug | B14: 200 | C14: 5.55 | D14: 197.5 | E14: 40 | F14: 5.55 | G14: 13.8 | K14: Aug | L14: 7.3 | M14: 197.5 | N14: 7.3 | O14: 13.8
A15: Sep | B15: 200 | C15: 6.3 | D15: 103.9 | E15: 40 | F15: 6.3 | G15: 11.1 | K15: Sep | L15: 6.7 | M15: 103.9 | N15: 6.7 | O15: 11.1
A16: Oct | B16: 200 | C16: 6.1 | D16: 128.2 | E16: 40 | F16: 6.1 | G16: 13 | K16: Oct | L16: 6.8 | M16: 128.2 | N16: 6.8 | O16: 13
A17: Nov | B17: 200 | C17: 6.2 | D17: 113.7 | E17: 40 | F17: 6.15 | G17: 11.7 | K17: Nov | L17: 6.8 | M17: 113.7 | N17: 6.8 | O17: 11.7
A18: Dec | B18: 200 | C18: 5.4 | D18: 105.1 | E18: 40 | F18: 5.4 | G18: 10.9 | K18: Dec | L18: 7 | M18: 87.1 | N18: 7 | O18: 10.9
K19: Annual | L19: =AVERAGE(L7:L18) -> 8.333333333 | M19: =MAX(M7:M18) -> 197.5 | N19: =AVERAGE(N7:N18) -> 8.258333333 | O19: =MAX(O7:O18) -> 25.1
J21: =+A5 -> 2024 | K21: mg/Nm3 | L21: Monthly mean of half-hourly averages | M21: Highest half- hourly average | N21: Monthly mean of daily averages | O21: Highest daily average
J22: A2 | K22: Jan | L22: 3.1 | M22: 125.4 | N22: 3.1 | O22: 14.9
K23: Feb | L23: 3.2 | M23: 69.3 | N23: 3.2 | O23: 6.9
K24: Mar | L24: 4.5 | M24: 82.2 | N24: 4.5 | O24: 8.6
K25: Apr | L25: 12.1 | M25: 143.1 | N25: 12 | O25: 22.9
K26: May | L26: 5.7 | M26: 107.9 | N26: 5.8 | O26: 15.5
K27: Jun | L27: 3 | M27: 165.2 | N27: 3 | O27: 8
K28: Jul | L28: 3.4 | M28: 72.6 | N28: 3.4 | O28: 8.1
K29: Aug | L29: 3.8 | M29: 110.1 | N29: 3.8 | O29: 7.3
K30: Sep | L30: 5.9 | M30: 99.4 | N30: 5.9 | O30: 10.7
K31: Oct | L31: 5.4 | M31: 103.4 | N31: 5.4 | O31: 10.4
K32: Nov | L32: 5.6 | M32: 91.9 | N32: 5.5 | O32: 9.3
K33: Dec | L33: 3.8 | M33: 105.1 | N33: 3.8 | O33: 6.3
K34: Annual | L34: =AVERAGE(L22:L33) -> 4.958333333 | M34: =MAX(M22:M33) -> 165.2 | N34: =AVERAGE(N22:N33) -> 4.95 | O34: =MAX(O22:O33) -> 22.9
J36: =+A5 -> 2024 | K36: mg/Nm3 | L36: Monthly mean of half-hourly averages | M36: Highest half- hourly average | N36: Monthly mean of daily averages | O36: Highest daily average
J37: A3 | K37: Jan
K38: Feb
K39: Mar
K40: Apr
K41: May
K42: Jun
K43: Jul
K44: Aug
K45: Sep
K46: Oct
K47: Nov
A48: Comments : | K48: Dec
K49: Annual | L49: =AVERAGE(L37:L48) ->  | M49: =MAX(M37:M48) -> 0 | N49: =AVERAGE(N37:N48) ->  | O49: =MAX(O37:O48) -> 0
J51: =+A5 -> 2024 | K51: mg/Nm3 | L51: Monthly mean of half-hourly averages | M51: Highest half- hourly average | N51: Monthly mean of daily averages | O51: Highest daily average
J52: A4 | K52: Jan
K53: Feb
K54: Mar
K55: Apr
K56: May
K57: Jun
K58: Jul
K59: Aug
K60: Sep
K61: Oct
K62: Nov
K63: Dec
K64: Annual | L64: =AVERAGE(L52:L63) ->  | M64: =MAX(M52:M63) -> 0 | N64: =AVERAGE(N52:N63) ->  | O64: =MAX(O52:O63) -> 0
J66: =+A5 -> 2024 | K66: mg/Nm3 | L66: Monthly mean of half-hourly averages | M66: Highest half- hourly average | N66: Monthly mean of daily averages | O66: Highest daily average
J67: A5 | K67: Jan
K68: Feb
K69: Mar
K70: Apr
K71: May
K72: Jun
K73: Jul
K74: Aug
K75: Sep
K76: Oct
K77: Nov
K78: Dec
K79: Annual | L79: =AVERAGE(L67:L78) ->  | M79: =MAX(M67:M78) -> 0 | N79: =AVERAGE(N67:N78) ->  | O79: =MAX(O67:O78) -> 0

Sheet NOx
A1: =+'Cover Page'!$B$29 -> Annual Performance Report 2024 | E1: =+'Cover Page'!$B$33 -> Tyseley Energy from Waste Plant
A3: Monitoring of Oxides of Nitrogen emissions | D3: Whole Installation | G3: See Notes in Cell Q3 | J3: =+A3 -> Monitoring of Oxides of Nitrogen emissions | N3: Per Combustion Line | Q3: Notes:
Q4: User to add logic to complete Whole installation, Table A5:G18. From the data in Per Combustion Line, Table J6:O79, subject to No. of lines installed
A5: =+'Cover Page'!C39 -> 2024 | B5: 1/2 Hourly Reference Periods | E5: Daily Reference Periods
A6: mg/Nm3 | B6: 1/2 hourly NOx ELV | C6: Monthly mean of half-hourly averages | D6: Highest half- hourly average | E6: Daily NOx ELV | F6: Monthly mean of daily averages | G6: Highest daily average | J6: =+A5 -> 2024 | K6: mg/Nm3 | L6: Monthly mean of half-hourly averages | M6: Highest half- hourly average | N6: Monthly mean of daily averages | O6: Highest daily average
A7: Jan | B7: 400 | C7: =AVERAGE(L7,L22) -> 167.4 | D7: =MAX(M7,M22) -> 226.4 | E7: 180 | F7: =AVERAGE(N7,N22) -> 167.35 | G7: =MAX(O7,O22) -> 173 | J7: A1 | K7: Jan | L7: 167.5 | M7: 226.4 | N7: 167.4 | O7: 171.8
A8: Feb | B8: 400 | C8: =AVERAGE(L8,L23) -> 165.15 | D8: =MAX(M8,M23) -> 221.2 | E8: 180 | F8: =AVERAGE(N8,N23) -> 165.1 | G8: =MAX(O8,O23) -> 168.6 | K8: Feb | L8: 164.7 | M8: 199.6 | N8: 164.6 | O8: 166.4
A9: Mar | B9: 400 | C9: 165.25 | D9: 278.5 | E9: 180 | F9: 165.2 | G9: 170.4 | K9: Mar | L9: 165 | M9: 199.3 | N9: 164.9 | O9: 168.6 | Q9: Whole Installation table A5:G18:
A10: Apr | B10: 400 | C10: 162.6 | D10: 286.4 | E10: 180 | F10: 162.55 | G10: 173.9 | K10: Apr | L10: 166 | M10: 286.4 | N10: 165.4 | O10: 173.9 | Q10: Mean: for 1/2 hourly and daily periods calculate mean of values across all operational combustion lines for the month
A11: May | B11: 400 | C11: 165.1 | D11: 214.4 | E11: 180 | F11: 165.05 | G11: 170.3 | K11: May | L11: 164.4 | M11: 155.8 | N11: 164.4 | O11: 169.9
A12: Jun | B12: 400 | C12: 164.75 | D12: 253.8 | E12: 180 | F12: 164.7 | G12: 167.4 | K12: Jun | L12: 164.8 | M12: 214.2 | N12: 164.7 | O12: 167
A13: Jul | B13: 400 | C13: 164.05 | D13: 204.1 | E13: 180 | F13: 164 | G13: 169.6 | K13: Jul | L13: 165 | M13: 204.1 | N13: 165 | O13: 169.6 | Q13: Maximum: for 1/2 hourly and daily periods use the highest value across all operational combustion lines for the month
A14: Aug | B14: 400 | C14: 163.75 | D14: 203.7 | E14: 180 | F14: 163.7 | G14: 166 | K14: Aug | L14: 164.4 | M14: 203.7 | N14: 164.3 | O14: 166
A15: Sep | B15: 400 | C15: 164.75 | D15: 200.8 | E15: 180 | F15: 164.75 | G15: 169.4 | K15: Sep | L15: 164.6 | M15: 198.7 | N15: 164.5 | O15: 166.5
A16: Oct | B16: 400 | C16: 165 | D16: 210.7 | E16: 180 | F16: 164.95 | G16: 174.7 | K16: Oct | L16: 164.9 | M16: 204.4 | N16: 164.8 | O16: 167
A17: Nov | B17: 400 | C17: 164.9 | D17: 204.9 | E17: 180 | F17: 164.9 | G17: 169 | K17: Nov | L17: 164.6 | M17: 200.9 | N17: 164.6 | O17: 165.2
A18: Dec | B18: 400 | C18: 164.8 | D18: 199.4 | E18: 180 | F18: 164.8 | G18: 166.2 | K18: Dec | L18: 164.5 | M18: 199.4 | N18: 164.5 | O18: 165.2
K19: Annual | L19: =AVERAGE(L7:L18) -> 165.0333333 | M19: =MAX(M7:M18) -> 286.4 | N19: =AVERAGE(N7:N18) -> 164.925 | O19: =MAX(O7:O18) -> 173.9
J21: =+A5 -> 2024 | K21: mg/Nm3 | L21: Monthly mean of half-hourly averages | M21: Highest half- hourly average | N21: Monthly mean of daily averages | O21: Highest daily average
J22: A2 | K22: Jan | L22: 167.3 | M22: 222.2 | N22: 167.3 | O22: 173
K23: Feb | L23: 165.6 | M23: 221.2 | N23: 165.6 | O23: 168.6
K24: Mar | L24: 165.5 | M24: 278.5 | N24: 165.5 | O24: 170.4
K25: Apr | L25: 159.2 | M25: 231.1 | N25: 159.7 | O25: 172.6
K26: May | L26: 165.8 | M26: 214.4 | N26: 165.7 | O26: 170.3
K27: Jun | L27: 164.7 | M27: 253.8 | N27: 164.7 | O27: 167.4
K28: Jul | L28: 163.1 | M28: 193.3 | N28: 163 | O28: 166
K29: Aug | L29: 163.1 | M29: 192.9 | N29: 163.1 | O29: 165.4
K30: Sep | L30: 164.9 | M30: 200.8 | N30: 165 | O30: 169.4
K31: Oct | L31: 165.1 | M31: 210.7 | N31: 165.1 | O31: 174.7
K32: Nov | L32: 165.2 | M32: 204.9 | N32: 165.2 | O32: 169
K33: Dec | L33: 165.1 | M33: 194.6 | N33: 165.1 | O33: 166.2
K34: Annual | L34: =AVERAGE(L22:L33) -> 164.55 | M34: =MAX(M22:M33) -> 278.5 | N34: =AVERAGE(N22:N33) -> 164.5833333 | O34: =MAX(O22:O33) -> 174.7
J36: =+A5 -> 2024 | K36: mg/Nm3 | L36: Monthly mean of half-hourly averages | M36: Highest half- hourly average | N36: Monthly mean of daily averages | O36: Highest daily average
J37: A3 | K37: Jan
K38: Feb
K39: Mar
K40: Apr
K41: May
K42: Jun
K43: Jul
K44: Aug
K45: Sep
K46: Oct
K47: Nov
A48: Comments : | K48: Dec
K49: Annual | L49: =AVERAGE(L37:L48) ->  | M49: =MAX(M37:M48) -> 0 | N49: =AVERAGE(N37:N48) ->  | O49: =MAX(O37:O48) -> 0
J51: =+A5 -> 2024 | K51: mg/Nm3 | L51: Monthly mean of half-hourly averages | M51: Highest half- hourly average | N51: Monthly mean of daily averages | O51: Highest daily average
J52: A4 | K52: Jan
K53: Feb
K54: Mar
K55: Apr
K56: May
K57: Jun
K58: Jul
K59: Aug
K60: Sep
K61: Oct
K62: Nov
K63: Dec
K64: Annual | L64: =AVERAGE(L52:L63) ->  | M64: =MAX(M52:M63) -> 0 | N64: =AVERAGE(N52:N63) ->  | O64: =MAX(O52:O63) -> 0
J66: =+A5 -> 2024 | K66: mg/Nm3 | L66: Monthly mean of half-hourly averages | M66: Highest half- hourly average | N66: Monthly mean of daily averages | O66: Highest daily average
J67: A5 | K67: Jan
K68: Feb
K69: Mar
K70: Apr
K71: May
K72: Jun
K73: Jul
K74: Aug
K75: Sep
K76: Oct
K77: Nov
K78: Dec
K79: Annual | L79: =AVERAGE(L67:L78) ->  | M79: =MAX(M67:M78) -> 0 | N79: =AVERAGE(N67:N78) ->  | O79: =MAX(O67:O78) -> 0

Sheet TOC
A1: =+'Cover Page'!$B$29 -> Annual Performance Report 2024 | E1: =+'Cover Page'!$B$33 -> Tyseley Energy from Waste Plant
A3: Monitoring of Total organic carbon emissions | D3: Whole Installation | G3: See Notes in Cell Q3 | J3: =+A3 -> Monitoring of Total organic carbon emissions | N3: Per Combustion Line | Q3: Notes:
Q4: User to add logic to complete Whole installation, Table A5:G18. From the data in Per Combustion Line, Table J6:O79, subject to No. of lines installed
A5: =+'Cover Page'!C39 -> 2024 | B5: 1/2 Hourly Reference Periods | E5: Daily Reference Periods
A6: mg/Nm3 | B6: 1/2 hourly TOC ELV | C6: Monthly mean of half-hourly averages | D6: Highest half- hourly average | E6: Daily TOC ELV | F6: Monthly mean of daily averages | G6: Highest daily average | J6: =+A5 -> 2024 | K6: mg/Nm3 | L6: Monthly mean of half-hourly averages | M6: Highest half- hourly average | N6: Monthly mean of daily averages | O6: Highest daily average
A7: Jan | B7: 20 | C7: =AVERAGE(L7,L22) -> 1.1 | D7: =MAX(M7,M22) -> 6.2 | E7: 10 | F7: =AVERAGE(N7,N22) -> 1.05 | G7: =MAX(O7,O22) -> 2.1 | J7: A1 | K7: Jan | L7: 0.4 | M7: 5.5 | N7: 0.4 | O7: 1.4
A8: Feb | B8: 20 | C8: =AVERAGE(L8,L23) -> 1.05 | D8: =MAX(M8,M23) -> 6 | E8: 10 | F8: =AVERAGE(N8,N23) -> 1.05 | G8: =MAX(O8,O23) -> 2.5 | K8: Feb | L8: 0.3 | M8: 6 | N8: 0.3 | O8: 0.8
A9: Mar | B9: 20 | C9: 1.1 | D9: 17.7 | E9: 10 | F9: 1.05 | G9: 2.2 | K9: Mar | L9: 0.3 | M9: 5.4 | N9: 0.2 | O9: 0.5 | Q9: Whole Installation table A5:G18:
A10: Apr | B10: 20 | C10: 1 | D10: 7.2 | E10: 10 | F10: 0.95 | G10: 2.2 | K10: Apr | L10: 0.5 | M10: 7.2 | N10: 0.5 | O10: 1.7 | Q10: Mean: for 1/2 hourly and daily periods calculate mean of values across all operational combustion lines for the month
A11: May | B11: 20 | C11: 0.9 | D11: 13 | E11: 10 | F11: 0.9 | G11: 3.2 | K11: May | L11: 0.8 | M11: 13 | N11: 0.8 | O11: 3.2
A12: Jun | B12: 20 | C12: 1.05 | D12: 9.6 | E12: 10 | F12: 1 | G12: 2.7 | K12: Jun | L12: 0.3 | M12: 5.9 | N12: 0.3 | O12: 0.9
A13: Jul | B13: 20 | C13: 1.2 | D13: 11.3 | E13: 10 | F13: 1.15 | G13: 2.4 | K13: Jul | L13: 0.5 | M13: 11.3 | N13: 0.5 | O13: 1.4 | Q13: Maximum: for 1/2 hourly and daily periods use the highest value across all operational combustion lines for the month
A14: Aug | B14: 20 | C14: 1 | D14: 20.3 | E14: 10 | F14: 0.95 | G14: 2 | K14: Aug | L14: 0.3 | M14: 20.3 | N14: 0.2 | O14: 1.2
A15: Sep | B15: 20 | C15: 1.4 | D15: 10.7 | E15: 10 | F15: 1.4 | G15: 2.3 | K15: Sep | L15: 0.9 | M15: 10.7 | N15: 0.9 | O15: 2.3
A16: Oct | B16: 20 | C16: 1.25 | D16: 13.3 | E16: 10 | F16: 1.25 | G16: 2.5 | K16: Oct | L16: 0.6 | M16: 4.7 | N16: 0.6 | O16: 1.1
A17: Nov | B17: 20 | C17: 1.25 | D17: 14.8 | E17: 10 | F17: 1.15 | G17: 2.1 | K17: Nov | L17: 0.6 | M17: 4.5 | N17: 0.5 | O17: 0.8
A18: Dec | B18: 20 | C18: 1.15 | D18: 8.5 | E18: 10 | F18: 1.1 | G18: 1.9 | K18: Dec | L18: 0.6 | M18: 6.8 | N18: 0.5 | O18: 1.3
K19: Annual | L19: =AVERAGE(L7:L18) -> 0.5083333333 | M19: =MAX(M7:M18) -> 20.3 | N19: =AVERAGE(N7:N18) -> 0.475 | O19: =MAX(O7:O18) -> 3.2
J21: =+A5 -> 2024 | K21: mg/Nm3 | L21: Monthly mean of half-hourly averages | M21: Highest half- hourly average | N21: Monthly mean of daily averages | O21: Highest daily average
J22: A2 | K22: Jan | L22: 1.8 | M22: 6.2 | N22: 1.7 | O22: 2.1
K23: Feb | L23: 1.8 | M23: 5 | N23: 1.8 | O23: 2.5
K24: Mar | L24: 1.9 | M24: 17.7 | N24: 1.9 | O24: 2.2
K25: Apr | L25: 1.5 | M25: 7.1 | N25: 1.4 | O25: 2.2
K26: May | L26: 1 | M26: 10.8 | N26: 1 | O26: 1.7
K27: Jun | L27: 1.8 | M27: 9.6 | N27: 1.7 | O27: 2.7
K28: Jul | L28: 1.9 | M28: 7.6 | N28: 1.8 | O28: 2.4
K29: Aug | L29: 1.7 | M29: 8.4 | N29: 1.7 | O29: 2
K30: Sep | L30: 1.9 | M30: 8.6 | N30: 1.9 | O30: 2.2
K31: Oct | L31: 1.9 | M31: 13.3 | N31: 1.9 | O31: 2.5
K32: Nov | L32: 1.9 | M32: 14.8 | N32: 1.8 | O32: 2.1
K33: Dec | L33: 1.7 | M33: 8.5 | N33: 1.7 | O33: 1.9
K34: Annual | L34: =AVERAGE(L22:L33) -> 1.733333333 | M34: =MAX(M22:M33) -> 17.7 | N34: =AVERAGE(N22:N33) -> 1.691666667 | O34: =MAX(O22:O33) -> 2.7
J36: =+A5 -> 2024 | K36: mg/Nm3 | L36: Monthly mean of half-hourly averages | M36: Highest half- hourly average | N36: Monthly mean of daily averages | O36: Highest daily average
J37: A3 | K37: Jan
K38: Feb
K39: Mar
K40: Apr
K41: May
K42: Jun
K43: Jul
K44: Aug
K45: Sep
K46: Oct
K47: Nov
A48: Comments : | K48: Dec
A49: A half hour exceedance occurred on A1 in August | K49: Annual | L49: =AVERAGE(L37:L48) ->  | M49: =MAX(M37:M48) -> 0 | N49: =AVERAGE(N37:N48) ->  | O49: =MAX(O37:O48) -> 0
J51: =+A5 -> 2024 | K51: mg/Nm3 | L51: Monthly mean of half-hourly averages | M51: Highest half- hourly average | N51: Monthly mean of daily averages | O51: Highest daily average
J52: A4 | K52: Jan
K53: Feb
K54: Mar
K55: Apr
K56: May
K57: Jun
K58: Jul
K59: Aug
K60: Sep
K61: Oct
K62: Nov
K63: Dec
K64: Annual | L64: =AVERAGE(L52:L63) ->  | M64: =MAX(M52:M63) -> 0 | N64: =AVERAGE(N52:N63) ->  | O64: =MAX(O52:O63) -> 0
J66: =+A5 -> 2024 | K66: mg/Nm3 | L66: Monthly mean of half-hourly averages | M66: Highest half- hourly average | N66: Monthly mean of daily averages | O66: Highest daily average
J67: A5 | K67: Jan
K68: Feb
K69: Mar
K70: Apr
K71: May
K72: Jun
K73: Jul
K74: Aug
K75: Sep
K76: Oct
K77: Nov
K78: Dec
K79: Annual | L79: =AVERAGE(L67:L78) ->  | M79: =MAX(M67:M78) -> 0 | N79: =AVERAGE(N67:N78) ->  | O79: =MAX(O67:O78) -> 0

Sheet Particulates
A1: =+'Cover Page'!$B$29 -> Annual Performance Report 2024 | E1: =+'Cover Page'!$B$33 -> Tyseley Energy from Waste Plant
A3: Monitoring of Particulate matter emissions | D3: Whole Installation | G3: See Notes in Cell Q3 | J3: =+A3 -> Monitoring of Particulate matter emissions | N3: Per Combustion Line | Q3: Notes:
A5: =+'Cover Page'!C39 -> 2024 | B5: 1/2 Hourly Reference Periods | E5: Daily Reference Periods | Q5: User to add logic to complete Whole installation, Table A5:G18. From the data in Per Combustion Line, Table J6:O79, subject to No. of lines installed
A6: mg/Nm3 | B6: 1/2 hourly PM ELV | C6: Monthly mean of half-hourly averages | D6: Highest half- hourly average | E6: Daily PM ELV | F6: Monthly mean of daily averages | G6: Highest daily average | J6: =+A5 -> 2024 | K6: mg/Nm3 | L6: Monthly mean of half-hourly averages | M6: Highest half- hourly average | N6: Monthly mean of daily averages | O6: Highest daily average
A7: Jan | B7: 30 | C7: =AVERAGE(L7,L22) -> 0.55 | D7: =MAX(M7,M22) -> 3.4 | E7: 5 | F7: =AVERAGE(N7,N22) -> 0.5 | G7: =MAX(O7,O22) -> 0.8 | J7: A1 | K7: Jan | L7: 0.4 | M7: 1.1 | N7: 0.3 | O7: 0.5
A8: Feb | B8: 30 | C8: =AVERAGE(L8,L23) -> 0.6 | D8: =MAX(M8,M23) -> 3.4 | E8: 5 | F8: =AVERAGE(N8,N23) -> 0.55 | G8: =MAX(O8,O23) -> 1 | K8: Feb | L8: 0.4 | M8: 3.4 | N8: 0.3 | O8: 0.5
A9: Mar | B9: 30 | C9: 0.7 | D9: 1.9 | E9: 5 | F9: 0.65 | G9: 1.4 | K9: Mar | L9: 0.4 | M9: 1.8 | N9: 0.4 | O9: 0.6
A10: Apr | B10: 30 | C10: 0.7 | D10: 21.8 | E10: 5 | F10: 0.6 | G10: 1.1 | K10: Apr | L10: 0.6 | M10: 21.8 | N10: 0.5 | O10: 1.1 | Q10: Whole Installation table A5:G18:
A11: May | B11: 30 | C11: 0.55 | D11: 3.4 | E11: 5 | F11: 0.5 | G11: 0.8 | K11: May | L11: 0.5 | M11: 3.1 | N11: 0.4 | O11: 0.8 | Q11: Mean: for 1/2 hourly and daily periods calculate mean of values across all operational combustion lines for the month
A12: Jun | B12: 30 | C12: 0.6 | D12: 5.1 | E12: 5 | F12: 0.55 | G12: 0.8 | K12: Jun | L12: 0.5 | M12: 2.1 | N12: 0.5 | O12: 0.6
A13: Jul | B13: 30 | C13: 0.55 | D13: 8.9 | E13: 5 | F13: 0.55 | G13: 1 | K13: Jul | L13: 0.4 | M13: 8.9 | N13: 0.4 | O13: 1
A14: Aug | B14: 30 | C14: 0.55 | D14: 4.7 | E14: 5 | F14: 0.55 | G14: 1 | K14: Aug | L14: 0.3 | M14: 1.1 | N14: 0.3 | O14: 0.5 | Q14: Maximum: for 1/2 hourly and daily periods use the highest value across all operational combustion lines for the month
A15: Sep | B15: 30 | C15: 0.7 | D15: 5.9 | E15: 5 | F15: 0.65 | G15: 2.2 | K15: Sep | L15: 0.4 | M15: 5.9 | N15: 0.3 | O15: 0.7
A16: Oct | B16: 30 | C16: 0.75 | D16: 3.7 | E16: 5 | F16: 0.7 | G16: 1.9 | K16: Oct | L16: 0.4 | M16: 1.2 | N16: 0.4 | O16: 0.6
A17: Nov | B17: 30 | C17: 0.8 | D17: 3.5 | E17: 5 | F17: 0.75 | G17: 1.5 | K17: Nov | L17: 0.6 | M17: 2.9 | N17: 0.5 | O17: 1.3
A18: Dec | B18: 30 | C18: 0.7 | D18: 3.3 | E18: 5 | F18: 0.7 | G18: 1.3 | K18: Dec | L18: 0.5 | M18: 3.3 | N18: 0.5 | O18: 0.7
K19: Annual | L19: =AVERAGE(L7:L18) -> 0.45 | M19: =MAX(M7:M18) -> 21.8 | N19: =AVERAGE(N7:N18) -> 0.4 | O19: =MAX(O7:O18) -> 1.3
J21: =+A5 -> 2024 | K21: mg/Nm3 | L21: Monthly mean of half-hourly averages | M21: Highest half- hourly average | N21: Monthly mean of daily averages | O21: Highest daily average
J22: A2 | K22: Jan | L22: 0.7 | M22: 3.4 | N22: 0.7 | O22: 0.8
K23: Feb | L23: 0.8 | M23: 1.6 | N23: 0.8 | O23: 1
K24: Mar | L24: 1 | M24: 1.9 | N24: 0.9 | O24: 1.4
K25: Apr | L25: 0.8 | M25: 1.6 | N25: 0.7 | O25: 0.8
K26: May | L26: 0.6 | M26: 3.4 | N26: 0.6 | O26: 0.7
K27: Jun | L27: 0.7 | M27: 5.1 | N27: 0.6 | O27: 0.8
K28: Jul | L28: 0.7 | M28: 3.3 | N28: 0.7 | O28: 0.9
K29: Aug | L29: 0.8 | M29: 4.7 | N29: 0.8 | O29: 1
K30: Sep | L30: 1 | M30: 5 | N30: 1 | O30: 2.2
K31: Oct | L31: 1.1 | M31: 3.7 | N31: 1 | O31: 1.9
K32: Nov | L32: 1 | M32: 3.5 | N32: 1 | O32: 1.5
K33: Dec | L33: 0.9 | M33: 1.8 | N33: 0.9 | O33: 1.3
K34: Annual | L34: =AVERAGE(L22:L33) -> 0.8416666667 | M34: =MAX(M22:M33) -> 5.1 | N34: =AVERAGE(N22:N33) -> 0.8083333333 | O34: =MAX(O22:O33) -> 2.2
J36: =+A5 -> 2024 | K36: mg/Nm3 | L36: Monthly mean of half-hourly averages | M36: Highest half- hourly average | N36: Monthly mean of daily averages | O36: Highest daily average
J37: A3 | K37: Jan
K38: Feb
K39: Mar
K40: Apr
K41: May
K42: Jun
K43: Jul
K44: Aug
K45: Sep
K46: Oct
K47: Nov
A48: Comments : | K48: Dec
K49: Annual | L49: =AVERAGE(L37:L48) ->  | M49: =MAX(M37:M48) -> 0 | N49: =AVERAGE(N37:N48) ->  | O49: =MAX(O37:O48) -> 0
J51: =+A5 -> 2024 | K51: mg/Nm3 | L51: Monthly mean of half-hourly averages | M51: Highest half- hourly average | N51: Monthly mean of daily averages | O51: Highest daily average
J52: A4 | K52: Jan
K53: Feb
K54: Mar
K55: Apr
K56: May
K57: Jun
K58: Jul
K59: Aug
K60: Sep
K61: Oct
K62: Nov
K63: Dec
K64: Annual | L64: =AVERAGE(L52:L63) ->  | M64: =MAX(M52:M63) -> 0 | N64: =AVERAGE(N52:N63) ->  | O64: =MAX(O52:O63) -> 0
J66: =+A5 -> 2024 | K66: mg/Nm3 | L66: Monthly mean of half-hourly averages | M66: Highest half- hourly average | N66: Monthly mean of daily averages | O66: Highest daily average
J67: A5 | K67: Jan
K68: Feb
K69: Mar
K70: Apr
K71: May
K72: Jun
K73: Jul
K74: Aug
K75: Sep
K76: Oct
K77: Nov
K78: Dec
K79: Annual | L79: =AVERAGE(L67:L78) ->  | M79: =MAX(M67:M78) -> 0 | N79: =AVERAGE(N67:N78) ->  | O79: =MAX(O67:O78) -> 0

Sheet CO 0.5 hourly (hidden)
A1: =+'Cover Page'!$B$29 -> Annual Performance Report 2024 | E1: =+'Cover Page'!$B$33 -> Tyseley Energy from Waste Plant
A3: Monitoring of Carbon Monoxide (half hourly) | D3: Whole Installation | G3: See Notes in Cell Q3 | J3: =+A3 -> Monitoring of Carbon Monoxide (half hourly) | N3: Per Combustion Line | Q3: Notes:
A5: Please complete this tab for your plant if you have 1/2 hourly CO ELVs; otherwise, leave it blank and complete the CO 95% 10 min tab
Q7: User to add logic to complete Whole installation, Table A5:G18. From the data in Per Combustion Line, Table J6:O79, subject to No. of lines installed
A8: =+'Cover Page'!C39 -> 2024 | B8: 1/2 Hourly Reference Periods | E8: Daily Reference Periods
A9: mg/Nm3 | B9: 1/2 hourly CO ELV | C9: Monthly mean of half-hourly averages | D9: Highest half- hourly average | E9: Daily CO ELV | F9: Monthly mean of daily averages | G9: Highest daily average | J9: =+A8 -> 2024 | K9: mg/Nm3 | L9: Monthly mean of half-hourly averages | M9: Highest half- hourly average | N9: Monthly mean of daily averages | O9: Highest daily average
A10: Jan | B10: 100 | E10: 50 | J10: A1 | K10: Jan
A11: Feb | B11: =+B10 -> 100 | E11: =+E10 -> 50 | K11: Feb
A12: Mar | B12: =+B11 -> 100 | E12: =+E11 -> 50 | K12: Mar | Q12: Whole Installation table A5:G18:
A13: Apr | B13: 100 | E13: 50 | K13: Apr | Q13: Mean: for 1/2 hourly and daily periods calculate mean of values across all operational combustion lines for the month
A14: May | B14: 100 | E14: 50 | K14: May
A15: Jun | B15: 100 | E15: 50 | K15: Jun
A16: Jul | B16: 100 | E16: 50 | K16: Jul | Q16: Maximum: for 1/2 hourly and daily periods use the highest value across all operational combustion lines for the month
A17: Aug | B17: 100 | E17: 50 | K17: Aug
A18: Sep | B18: 100 | E18: 50 | K18: Sep
A19: Oct | B19: 100 | E19: 50 | K19: Oct
A20: Nov | B20: 100 | E20: 50 | K20: Nov
A21: Dec | B21: 100 | E21: 50 | K21: Dec
K22: Annual | L22: =AVERAGE(L10:L21) ->  | M22: =MAX(M10:M21) -> 0 | N22: =AVERAGE(N10:N21) ->  | O22: =MAX(O10:O21) -> 0
J24: =+A8 -> 2024 | K24: mg/Nm3 | L24: Monthly mean of half-hourly averages | M24: Highest half- hourly average | N24: Monthly mean of daily averages | O24: Highest daily average
J25: A2 | K25: Jan
K26: Feb
K27: Mar
K28: Apr
K29: May
K30: Jun
K31: Jul
K32: Aug
K33: Sep
K34: Oct
K35: Nov
K36: Dec
K37: Annual | L37: =AVERAGE(L25:L36) ->  | M37: =MAX(M25:M36) -> 0 | N37: =AVERAGE(N25:N36) ->  | O37: =MAX(O25:O36) -> 0
J39: =+A8 -> 2024 | K39: mg/Nm3 | L39: Monthly mean of half-hourly averages | M39: Highest half- hourly average | N39: Monthly mean of daily averages | O39: Highest daily average
J40: A3 | K40: Jan
K41: Feb
K42: Mar
K43: Apr
K44: May
K45: Jun
K46: Jul
K47: Aug
K48: Sep
K49: Oct
K50: Nov
A51: Comments : | K51: Dec
K52: Annual | L52: =AVERAGE(L40:L51) ->  | M52: =MAX(M40:M51) -> 0 | N52: =AVERAGE(N40:N51) ->  | O52: =MAX(O40:O51) -> 0
J54: =+A8 -> 2024 | K54: mg/Nm3 | L54: Monthly mean of half-hourly averages | M54: Highest half- hourly average | N54: Monthly mean of daily averages | O54: Highest daily average
J55: A4 | K55: Jan
K56: Feb
K57: Mar
K58: Apr
K59: May
K60: Jun
K61: Jul
K62: Aug
K63: Sep
K64: Oct
K65: Nov
K66: Dec
K67: Annual | L67: =AVERAGE(L55:L66) ->  | M67: =MAX(M55:M66) -> 0 | N67: =AVERAGE(N55:N66) ->  | O67: =MAX(O55:O66) -> 0
J69: =+A8 -> 2024 | K69: mg/Nm3 | L69: Monthly mean of half-hourly averages | M69: Highest half- hourly average | N69: Monthly mean of daily averages | O69: Highest daily average
J70: A5 | K70: Jan
K71: Feb
K72: Mar
K73: Apr
K74: May
K75: Jun
K76: Jul
K77: Aug
K78: Sep
K79: Oct
K80: Nov
K81: Dec
K82: Annual | L82: =AVERAGE(L70:L81) ->  | M82: =MAX(M70:M81) -> 0 | N82: =AVERAGE(N70:N81) ->  | O82: =MAX(O70:O81) -> 0

Sheet CO 95% 10 min
A1: =+'Cover Page'!$B$29 -> Annual Performance Report 2024 | E1: =+'Cover Page'!$B$33 -> Tyseley Energy from Waste Plant
A3: Monitoring of Carbon Monoxide (10-minute avg) | E3: Whole Installation | H3: See Notes in Cell S3 | J3: =+A3 -> Monitoring of Carbon Monoxide (10-minute avg) | O3: Per Combustion Line | Q3: Notes: | S3: Notes:
A5: Please complete this tab for your plant if you have 10-minute average CO ELVs; otherwise, leave it blank and complete the CO 0.5 hourly tab
S7: User to add logic to complete Whole installation, Table A5:H18. From the data in Per Combustion Line, Table K6:Q79, subject to No. of lines installed
A8: =+'Cover Page'!C39 -> 2024 | B8: 10-minute Reference Periods | F8: Daily Reference Periods
A9: mg/Nm3 | B9: 95%ile 10-min avg CO ELV | C9: Highest daily 95%ile 10-min average | D9: Monthly mean of 10-min averages | E9: Highest 10-min average | F9: Daily CO ELV | G9: Monthly mean of daily averages | H9: Highest daily average | K9: =+A8 -> 2024 | L9: mg/Nm3 | M9: Highest daily 95%ile 10-min average | N9: Monthly mean of 10-min averages | O9: Highest 10-min average | P9: Monthly mean of daily averages | Q9: Highest daily average
A10: Jan | B10: 150 | C10: =MAX(M10,M25) -> 105.8 | D10: =AVERAGE(N10,N25) -> 10.35 | E10: =MAX(O10,O25) -> 437.1 | F10: 50 | G10: =AVERAGE(P10,P25) -> 10.3 | H10: =MAX(Q10,Q25) -> 20.7 | K10: A1 | L10: Jan | M10: 105.8 | N10: 11.7 | O10: 329.9 | P10: 11.6 | Q10: 20.7
A11: Feb | B11: =+B10 -> 150 | C11: =MAX(M11,M26) -> 89.7 | D11: =AVERAGE(N11,N26) -> 13.3 | E11: =MAX(O11,O26) -> 615.2 | F11: =+F10 -> 50 | G11: =AVERAGE(P11,P26) -> 13.3 | H11: =MAX(Q11,Q26) -> 24 | L11: Feb | M11: 89.7 | N11: 12.5 | O11: 272.5 | P11: 12.5 | Q11: 22.5
A12: Mar | B12: =+B11 -> 150 | C12: 69.4 | D12: 13.35 | E12: 558.6 | F12: =+F11 -> 50 | G12: 13.1 | H12: 19.9 | L12: Mar | M12: 69.4 | N12: 13.2 | O12: 285.8 | P12: 12.9 | Q12: 16 | S12: Whole Installation table A5:H18:
A13: Apr | B13: 150 | C13: 81.6 | D13: 13.55 | E13: 412.3 | F13: 50 | G13: 13.45 | H13: 21.7 | L13: Apr | M13: 81.6 | N13: 13.4 | O13: 412.3 | P13: 13.4 | Q13: 21.7 | S13: Mean: for 10-min and daily periods use average of all operational combustion lines.
A14: May | B14: 150 | C14: 115 | D14: 12.5 | E14: 610.6 | F14: 50 | G14: 12.45 | H14: 21.3 | L14: May | M14: 115 | N14: 15.7 | O14: 437.5 | P14: 15.7 | Q14: 21.3
A15: Jun | B15: 150 | C15: 93.3 | D15: 12.05 | E15: 1152.4 | F15: 50 | G15: 12.2 | H15: 29.4 | L15: Jun | M15: 93.3 | N15: 10.1 | O15: 325.8 | P15: 10.1 | Q15: 19.9
A16: Jul | B16: 150 | C16: 127 | D16: 11.2 | E16: 626 | F16: 50 | G16: 11.2 | H16: 23.5 | L16: Jul | M16: 127 | N16: 11.8 | O16: 436 | P16: 11.8 | Q16: 23.5 | S16: Maximum: for 10-min and daily periods use the highest of all operational combustion lines in any month.
A17: Aug | B17: 150 | C17: 106.2 | D17: 10.7 | E17: 406.3 | F17: 50 | G17: 10.65 | H17: 25.7 | L17: Aug | M17: 106.2 | N17: 12.6 | O17: 387.1 | P17: 12.6 | Q17: 25.7
A18: Sep | B18: 150 | C18: 83.3 | D18: 11 | E18: 791.9 | F18: 50 | G18: 11.05 | H18: 21.6 | L18: Sep | M18: 83.3 | N18: 11.8 | O18: 370.5 | P18: 11.8 | Q18: 21.6
A19: Oct | B19: 150 | C19: 59.5 | D19: 10.65 | E19: 859.6 | F19: 50 | G19: 10.65 | H19: 17.9 | L19: Oct | M19: 59.5 | N19: 9.3 | O19: 155 | P19: 9.3 | Q19: 16.1
A20: Nov | B20: 150 | C20: 80.4 | D20: 12.35 | E20: 682.6 | F20: 50 | G20: 12.3 | H20: 20.4 | L20: Nov | M20: 80.4 | N20: 13.4 | O20: 379.3 | P20: 13.6 | Q20: 20.4
A21: Dec | B21: 150 | C21: 85.7 | D21: 10.3 | E21: 421.2 | F21: 50 | G21: 10.3 | H21: 21.6 | L21: Dec | M21: 85.7 | N21: 12.5 | O21: 254.8 | P21: 12.5 | Q21: 21.6
L22: Annual | M22: =AVERAGE(M10:M21) -> 91.40833333 | N22: =AVERAGE(N10:N21) -> 12.33333333 | O22: =MAX(O10:O21) -> 437.5 | P22: =AVERAGE(P10:P21) -> 12.31666667 | Q22: =MAX(Q10:Q21) -> 25.7
K24: =+A8 -> 2024 | L24: mg/Nm3 | M24: Highest daily 95%ile 10-min average | N24: Monthly mean of 10-min averages | O24: Highest 10-min average | P24: Monthly mean of daily averages | Q24: Highest daily average
K25: A2 | L25: Jan | M25: 54.9 | N25: 9 | O25: 437.1 | P25: 9 | Q25: 16.7
L26: Feb | M26: 88.2 | N26: 14.1 | O26: 615.2 | P26: 14.1 | Q26: 24
L27: Mar | M27: 60 | N27: 13.5 | O27: 558.6 | P27: 13.3 | Q27: 19.9
L28: Apr | M28: 56.1 | N28: 13.7 | O28: 146.3 | P28: 13.5 | Q28: 21.4
L29: May | M29: 63.8 | N29: 9.3 | O29: 610.6 | P29: 9.2 | Q29: 18.4
L30: Jun | M30: 85.4 | N30: 14 | O30: 1152.4 | P30: 14.3 | Q30: 29.4
L31: Jul | M31: 98.7 | N31: 10.6 | O31: 626 | P31: 10.6 | Q31: 23.2
L32: Aug | M32: 65 | N32: 8.8 | O32: 406.3 | P32: 8.7 | Q32: 17.3
L33: Sep | M33: 44.4 | N33: 10.2 | O33: 791.9 | P33: 10.3 | Q33: 16.1
L34: Oct | M34: 47.4 | N34: 12 | O34: 859.6 | P34: 12 | Q34: 17.9
L35: Nov | M35: 53.7 | N35: 11.3 | O35: 682.6 | P35: 11 | Q35: 17.2
L36: Dec | M36: 24.1 | N36: 8.1 | O36: 421.2 | P36: 8.1 | Q36: 11.6
L37: Annual | M37: =AVERAGE(M25:M36) -> 61.80833333 | N37: =AVERAGE(N25:N36) -> 11.21666667 | O37: =MAX(O25:O36) -> 1152.4 | P37: =AVERAGE(P25:P36) -> 11.175 | Q37: =MAX(Q25:Q36) -> 29.4
K39: =+A8 -> 2024 | L39: mg/Nm3 | M39: Highest daily 95%ile 10-min average | N39: Monthly mean of 10-min averages | O39: Highest 10-min average | P39: Monthly mean of daily averages | Q39: Highest daily average
K40: A3 | L40: Jan
L41: Feb
L42: Mar
L43: Apr
L44: May
L45: Jun
L46: Jul
L47: Aug
L48: Sep
L49: Oct
L50: Nov
A51: Comments : | L51: Dec
A52: Environment Agency explanatory note: The 10-minute average ELV is based on the “95th percentile”. In this case this means that 95% of the 10 minute averages in the relevant 24-hour period (i.e. 137) must be below 150 mg/Nm3, and 5% (i.e. 7) are allowed to be any value above 150 mg/Nm3. Whilst we expect operators to minimise CO emissions at all times, it is perfectly acceptable for the value of the maximum 10-minute average to be above 150 mg/Nm3, provided the 95th percentile ELV has been met for that period. | L52: Annual | M52: =AVERAGE(M40:M51) ->  | O52: =MAX(O40:O51) -> 0 | P52: =AVERAGE(P40:P51) ->  | Q52: =MAX(Q40:Q51) -> 0
K54: =+A8 -> 2024 | L54: mg/Nm3 | M54: Highest daily 95%ile 10-min average | N54: Monthly mean of 10-min averages | O54: Highest 10-min average | P54: Monthly mean of daily averages | Q54: Highest daily average
K55: A4 | L55: Jan
L56: Feb
L57: Mar
L58: Apr
L59: May
L60: Jun
L61: Jul
L62: Aug
L63: Sep
L64: Oct
L65: Nov
L66: Dec
L67: Annual | M67: =AVERAGE(M55:M66) ->  | O67: =MAX(O55:O66) -> 0 | P67: =AVERAGE(P55:P66) ->  | Q67: =MAX(Q55:Q66) -> 0
K69: =+A8 -> 2024 | L69: mg/Nm3 | M69: 95%ile 10-min avg maximum | N69: Monthly CO 10-min avg mean | O69: 10-min avg maximum | P69: Monthly daily mean | Q69: Monthly daily maximum
K70: A5 | L70: Jan
L71: Feb
L72: Mar
L73: Apr
L74: May
L75: Jun
L76: Jul
L77: Aug
L78: Sep
L79: Oct
L80: Nov
L81: Dec
L82: Annual | M82: =AVERAGE(M70:M81) ->  | O82: =MAX(O70:O81) -> 0 | P82: =AVERAGE(P70:P81) ->  | Q82: =MAX(Q70:Q81) -> 0

Sheet NH3
A1: =+'Cover Page'!$B$29 -> Annual Performance Report 2024 | E1: =+'Cover Page'!$B$33 -> Tyseley Energy from Waste Plant
A3: Monitoring of Ammnonia emissions | D3: Whole Installation | G3: See Notes in Cell Q3 | J3: =+A3 -> Monitoring of Ammnonia emissions | N3: Per Combustion Line | Q3: Notes:
Q4: User to add logic to complete Whole installation, Table A5:G18. From the data in Per Combustion Line, Table J6:O79, subject to No. of lines installed
A5: =+'Cover Page'!C39 -> 2024 | B5: 1/2 Hourly Reference Periods | E5: Daily Reference Periods
A6: mg/Nm3 | B6: 1/2 hourly NH3 ELV | C6: Monthly mean of half-hourly averages | D6: Highest half- hourly average | E6: Daily NH3 ELV | F6: Monthly mean of daily averages | G6: Highest daily average | J6: =+A5 -> 2024 | K6: mg/Nm3 | L6: Monthly mean of half-hourly averages | M6: Highest half- hourly average | N6: Monthly mean of daily averages | O6: Highest daily average
A7: Jan | B7: None | C7: =AVERAGE(L7,L22) -> 1 | D7: =MAX(M7,M22) -> 13.1 | E7: 15 | F7: =AVERAGE(N7,N22) -> 0.95 | G7: =MAX(O7,O22) -> 2.3 | J7: A1 | K7: Jan | L7: 1 | M7: 13.1 | N7: 0.9 | O7: 2.3
A8: Feb | B8: =+B7 -> None | C8: =AVERAGE(L8,L23) -> 1.15 | D8: =MAX(M8,M23) -> 9.9 | E8: 15 | F8: =AVERAGE(N8,N23) -> 1.1 | G8: =MAX(O8,O23) -> 2.3 | K8: Feb | L8: 1.1 | M8: 9.9 | N8: 1 | O8: 2.3
A9: Mar | B9: =+B8 -> None | C9: 1.85 | D9: 13.6 | E9: 15 | F9: 1.7 | G9: 3.4 | K9: Mar | L9: 1.6 | M9: 11.5 | N9: 1.4 | O9: 2.4 | Q9: Whole Installation table A5:G18:
A10: Apr | B10: None | C10: 4.15 | D10: 33.8 | E10: 15 | F10: 3.85 | G10: 12.3 | K10: Apr | L10: 5.2 | M10: 33.8 | N10: 4.7 | O10: 12.3 | Q10: Mean: for 1/2 hourly and daily periods calculate mean of values across all operational combustion lines for the month
A11: May | B11: None | C11: 1.85 | D11: 16.5 | E11: 15 | F11: 1.7 | G11: 4.3 | K11: May | L11: 1.5 | M11: 11 | N11: 1.4 | O11: 2.5
A12: Jun | B12: None | C12: 1.45 | D12: 13.1 | E12: 15 | F12: 1.4 | G12: 2.2 | K12: Jun | L12: 1.3 | M12: 7.5 | N12: 1.3 | O12: 2.1
A13: Jul | B13: None | C13: 1.3 | D13: 9.5 | E13: 15 | F13: 1.25 | G13: 2.3 | K13: Jul | L13: 1.3 | M13: 9.5 | N13: 1.3 | O13: 2.3 | Q13: Maximum: for 1/2 hourly and daily periods use the highest value across all operational combustion lines for the month
A14: Aug | B14: None | C14: 1 | D14: 15.2 | E14: 15 | F14: 1 | G14: 2 | K14: Aug | L14: 0.9 | M14: 15.2 | N14: 0.9 | O14: 2
A15: Sep | B15: None | C15: 1.5 | D15: 15.9 | E15: 15 | F15: 1.45 | G15: 3.4 | K15: Sep | L15: 1.4 | M15: 9.3 | N15: 1.4 | O15: 3.4
A16: Oct | B16: None | C16: 1.45 | D16: 13.1 | E16: 15 | F16: 1.45 | G16: 3.1 | K16: Oct | L16: 1.1 | M16: 11.1 | N16: 1.1 | O16: 2.9
A17: Nov | B17: None | C17: 1.55 | D17: 25.8 | E17: 15 | F17: 1.45 | G17: 3.6 | K17: Nov | L17: 1.3 | M17: 25.8 | N17: 1.2 | O17: 1.9
A18: Dec | B18: None | C18: 0.85 | D18: 6.7 | E18: 15 | F18: 0.85 | G18: 1.7 | K18: Dec | L18: 0.8 | M18: 6.7 | N18: 0.8 | O18: 1.3
K19: Annual | L19: =AVERAGE(L7:L18) -> 1.541666667 | M19: =MAX(M7:M18) -> 33.8 | N19: =AVERAGE(N7:N18) -> 1.45 | O19: =MAX(O7:O18) -> 12.3
J21: =+A5 -> 2024 | K21: mg/Nm3 | L21: Monthly mean of half-hourly averages | M21: Highest half- hourly average | N21: Monthly mean of daily averages | O21: Highest daily average
J22: A2 | K22: Jan | L22: 1 | M22: 6.9 | N22: 1 | O22: 2
K23: Feb | L23: 1.2 | M23: 9.3 | N23: 1.2 | O23: 2.3
K24: Mar | L24: 2.1 | M24: 13.6 | N24: 2 | O24: 3.4
K25: Apr | L25: 3.1 | M25: 20.3 | N25: 3 | O25: 10.4
K26: May | L26: 2.2 | M26: 16.5 | N26: 2 | O26: 4.3
K27: Jun | L27: 1.6 | M27: 13.1 | N27: 1.5 | O27: 2.2
K28: Jul | L28: 1.3 | M28: 5.3 | N28: 1.2 | O28: 2.2
K29: Aug | L29: 1.1 | M29: 7 | N29: 1.1 | O29: 1.6
K30: Sep | L30: 1.6 | M30: 15.9 | N30: 1.5 | O30: 3.1
K31: Oct | L31: 1.8 | M31: 13.1 | N31: 1.8 | O31: 3.1
K32: Nov | L32: 1.8 | M32: 12.4 | N32: 1.7 | O32: 3.6
K33: Dec | L33: 0.9 | M33: 5.8 | N33: 0.9 | O33: 1.7
K34: Annual | L34: =AVERAGE(L22:L33) -> 1.641666667 | M34: =MAX(M22:M33) -> 20.3 | N34: =AVERAGE(N22:N33) -> 1.575 | O34: =MAX(O22:O33) -> 10.4
J36: =+A5 -> 2024 | K36: mg/Nm3 | L36: Monthly mean of half-hourly averages | M36: Highest half- hourly average | N36: Monthly mean of daily averages | O36: Highest daily average
J37: A3 | K37: Jan
K38: Feb
K39: Mar
K40: Apr
K41: May
K42: Jun
K43: Jul
K44: Aug
K45: Sep
K46: Oct
K47: Nov
A48: Comments : | K48: Dec
A49: An indicated ELV value of zero in the table above means that no ammonia limit is/was set in the permit. | K49: Annual | L49: =AVERAGE(L37:L48) ->  | M49: =MAX(M37:M48) -> 0 | N49: =AVERAGE(N37:N48) ->  | O49: =MAX(O37:O48) -> 0
J51: =+A5 -> 2024 | K51: mg/Nm3 | L51: Monthly mean of half-hourly averages | M51: Highest half- hourly average | N51: Monthly mean of daily averages | O51: Highest daily average
J52: A4 | K52: Jan
K53: Feb
K54: Mar
K55: Apr
K56: May
K57: Jun
K58: Jul
K59: Aug
K60: Sep
K61: Oct
K62: Nov
K63: Dec
K64: Annual | L64: =AVERAGE(L52:L63) ->  | M64: =MAX(M52:M63) -> 0 | N64: =AVERAGE(N52:N63) ->  | O64: =MAX(O52:O63) -> 0
J66: =+A5 -> 2024 | K66: mg/Nm3 | L66: Monthly mean of half-hourly averages | M66: Highest half- hourly average | N66: Monthly mean of daily averages | O66: Highest daily average
J67: A5 | K67: Jan
K68: Feb
K69: Mar
K70: Apr
K71: May
K72: Jun
K73: Jul
K74: Aug
K75: Sep
K76: Oct
K77: Nov
K78: Dec
K79: Annual | L79: =AVERAGE(L67:L78) ->  | M79: =MAX(M67:M78) -> 0 | N79: =AVERAGE(N67:N78) ->  | O79: =MAX(O67:O78) -> 0

Sheet Template changes log
A1: Log of changes to template (Environment Agency use only)
A3: Date | B3: Description of change | C3: New version number and date
A4: 2024-01-16 | B4: Air (periodic) tab: corrected default O2 reference from 6 to 11% | C4: Version 23.5a (for incinerators) - 16/01/2024
A5: 2024-09-23 | B5: Air (periodic) tab: corrected symbol for Thallium to Tl
A6: 2024-09-23 | B6: Air (periodic) tab: removed last year's references to different emission limit values applying from 03/12/23 and updated all relevant ELVs
A7: 2024-09-23 | B7: Tabs for continuously monitored pollutants (HCl, SO2 etc.): changed terminology in table headings to improve clarity
A8: 2024-09-23 | B8: Tabs for continuously monitored pollutants (HCl, SO2 etc.): removed last year's references to different emission limit values applying from 03/12/23 and updated all relevant ELVs
A9: 2024-09-23 | B9: Perf 1 tab: updated formula for water usage to report m3 rather than litres and corrected error with formula copying operator name
A10: 2024-09-23 | B10: Operational Summary tab: table added on start-ups and shut-downs
A11: 2024-09-23 | B11: Operational Summary tab: table added on dioxins and mercury protocols
A12: 2024-09-23 | B12: Operational Summary tab: table added on AST, QAL 2 and calibration functions
A13: 2024-09-23 | B13: CO2 N2O tab: various changes made to notes to reflect the fact that most plants should now have calibrated CEMS and flow meters + some have C14 samplers and more up to date industry data | C13: Version 24a (for incinerators) - 23/09/24
A14: 2024-11-08 | B14: CO2 N2O tab: Changed the N2O CO2 equivalence factor from 298 to 265 in line with recently updated government greenhouse gas figures: https://www.gov.uk/government/publications/greenhouse-gas-reporting-conversion-factors-2024
A15: 2024-11-08 | B15: CO2 N2O tab: Added an additional requirement for municipal EfW plants to state the yearly average biogenic percentage of the waste by mass, and reference to a document which sets out a methodology for calculating NCV of waste from the results of C14 sampling.
A16: 2024-11-08 | B16: Permit Compliance tab: Two additional columns added + explanatory notes to the table entitled "Summary of non-compliances under the permit" to allow CCS scores to be stated where relevant.
A17: 2024-11-08 | B17: Residue Quality tab: Note added explaining application of TOC and LOI limits and asking operators to report both metrics where measured. | C17: Version 24.1a (for incinerators) - 08/11/24
A18: 2024-11-27 | B18: Operational Summary tab: Tables on mercury & dioxins protocols and ASTs removed (covered instead by new tables added to updated Air 9 periodic monitoring form) | C18: Version 24.2a (for incinerators) - 27/11/24
